Workbook

Sheet 1. Information Sheet
M12: Version | N12: 2.3
E14: Utility Name | F14: Orangeville Hydro Limited
E16: Service Territory | F16: (if applicable)
E18: Assigned EB Number | F18: EB-2012-0155
E20: Name of Contact and Title | F20: Jan Howard, Manager of Finance & Rates
E22: Phone Number | F22: (519)942-8000
E24: Email Address | F24: jhoward@orangevillehydro.on.ca
E26: We are applying for rates effective | F26: 2013-05-01
B29: Notes
C31: Pale green cells represent input cells.
C33: Pale blue cells represent drop-down lists. The applicant should select the appropriate item from the drop-down list.
C35: White cells contain fixed values, automatically generated values or formulae.

Sheet 2. Table of Contents
D14: 1. Information Sheet | H14: 8. Calculation of Def-Var RR
D15: 2. Table of Contents | H15: 9. Rev2Cost_GDPIPI
D16: 3. Rate Class Selection | H16: 10. Other Charges & LF
D17: 4. Current Tariff Schedule | H17: 11. Proposed Rates
D18: 5. 2013 Continuity Schedule | H18: 12. Summary Sheet
D19: 6. Billing Det. for Def-Var | H19: 13. Final Tariff Schedule
D20: 7. Cost Allocation for Def-Var | H20: 14. Bill Impacts

Sheet 3. Rate Class Selection
A12: Select the appropriate rate classes as they appear on your most recent Board-Approved Tariff of Rates and Charges, including the MicroFit Class.
A14: How many classes are listed on your most recent Board-Approved Tariff of Rates and Charges? | J14: 7
A16: Select Your Rate Classes from the Blue Cells below. Please ensure that a rate class is assigned to each shaded cell.
B18: Rate Class Classification
A19: 1 | B19: Residential
A20: 2 | B20: General Service Less Than 50 kW
A21: 3 | B21: General Service 50 to 4,999 kW
A22: 4 | B22: Unmetered Scattered Load
A23: 5 | B23: Sentinel Lighting
A24: 6 | B24: Street Lighting
A25: 7 | B25: MicroFit

Sheet 4. Current Tariff Schedule
Z1: 3 | AA1: January | AB1: ≥
AA2: February
AA3: March
AA4: April
AA5: May
AA6: June
AA7: July
AA8: August
AA9: September
AA10: October
AA11: November
B12: For each class, Applicants are required to copy and paste the class descriptions (located directly under the class name) and the description of the applicability of those rates (description is found under the class name and directly under the word "APPLICATION"). By using the drop-down lists located under the column labeled "Rate Description", please select the descriptions of the rates and charges that BEST MATCHES the descriptions on your most recent Board-Approved Tariff of Rates and Charges. If the description is not found in the drop-down list, please enter the description in the green cells under the correct class exactly as it appears on the tariff. Please do not enter more than one "Service Charge" for each class for which a base monthly fixed charge applies. **Note: If the current RRRP consists of only one line on the current tariff schedule, enter the same rate for "Rural Rate Protection Charge - effective until April 30, 2012" and "Rural Rate Protection Charge - effective on and after May 1, 2012". | AA12: December
B21: =IF(ISBLANK('1. Information Sheet'!F14), "Please Choose Distributor Name on Sheet 1", '1. Information Sheet'!F14) -> Orangeville Hydro Limited
A22: Embedded Distributor | B22: TARIFF OF RATES AND CHARGES
A24: Residential | B24: Residential Service Classification
A25: Residential
A26: Residential | B26: This classification refers to the supply of electrical energy to residential customers residing in detached, semi detached, townhouse (freehold or condominium) dwelling units duplexes or triplexes. Basic connection is defined as 100 amp 12/240 volt overhead service. Further servicing details are available in the distributor’s Conditions of Service.
A27: Residential
A28: Residential
A29: Residential
A30: Residential
A31: Residential
A32: Residential | B32: APPLICATION
A33: Residential
A34: Residential | B34: The application of these rates and charges shall be in accordance with the Licence of the Distributor and any Code or Order of the Board, and amendments thereto as approved by the Board, which may be applicable to the administration of this schedule.
A35: Residential
A36: Residential
A37: Residential | B37: No rates and charges for the distribution of electricity and charges to meet the costs of any work or service done or furnished for the purpose of the distribution of electricity shall be made except as permitted by this schedule, unless required by the Distributor’s Licence or a Code or Order of the Board, and amendments thereto as approved by the Board, or as specified herein.
A38: Residential
A39: Residential
A40: Residential
A41: Residential | B41: Unless specifically noted, this schedule does not contain any charges for the electricity commodity, be it under the Regulated Price Plan, a contract with a retailer or the wholesale market price, as applicable.
A42: Residential
A43: Residential
A44: Residential | B44: It should be noted that this schedule does not list any charges, assessments or credits that are required by law to be invoiced by a distributor and that are not subject to Board approval, such as the Debt Retirement Charge, the Global Adjustment, the Ontario Clean Energy Benefit and the HST.
A45: Residential
A46: Residential
A47: Residential
A48: Residential | B48: MONTHLY RATES AND CHARGES - Delivery Component (If applicable, Effective Date MUST be included in rate description)
A49: Residential | B49: Service Charge | H49: $ | I49: 16.26 | K49: 1_C_MSC
A50: Residential | B50: Distribution Volumetric Rate | H50: $/kWh | I50: 0.014 | K50: 1_C_VC
A51: Residential | B51: Low Voltage Service Rate | H51: $/kWh | I51: 0.0011 | K51: 1_C_LVrate
A52: Residential | B52: Rate Rider for Deferral/Variance Account Disposition (2010) – Effective until April 30, 2014 | H52: $/kWh | I52: -0.0013 | K52: 1_C_VC_Rate_Rider_kWh_1 | L52: 2014-04-30
A53: Residential | B53: Rate Rider for Deferral/Variance Account Disposition (2012) – Effective until April 30, 2013 | H53: $/kWh | K53: 1_C_VC_Rate_Rider_kWh_2 | L53: 2013-04-30
A54: Residential | B54: Rate Rider for Global Adjustment Sub-Account Disposition (2012) – Effective until April 30, 2013 Applicable only for Non-RPP Customers | H54: $/kWh | I54: 0.0017 | K54: 1_C_VC_GA_Rate_Rider_kWh_1 | L54: 2013-04-30
A55: Residential | B55: Rate Rider for Tax Adjustments - Effective until April 30, 2013 | H55: $/kWh | I55: -0.0003 | K55: 1_C_VC_Rate_Rider_kWh_3 | L55: 2013-04-30
A56: Residential | B56: Retail Transmission Rate - Network Service Rate | H56: $/kWh | I56: 0.0056 | K56: 1_C_RTSR_Network
A57: Residential | B57: Retail Transmission Rate - Line and Transformation Connection Service Rate | H57: $/kWh | I57: 0.0032 | K57: 1_C_RTSR_Connection
A58: Residential
A59: Residential
A60: Residential
A61: Residential
A62: Residential
A63: Residential
A64: Residential
A65: Residential
A66: Residential
A67: Residential
A68: Residential
A69: Residential
A70: Residential
A71: Residential
A72: Residential
A73: Residential | B73: Rider for Disposition of Residual Historical Smart Meter Costs – effective until April 30, 2013 | H73: $ | I73: -1.21 | K73: 1_C_MSC_Rate_Rider_1 | L73: 2013-04-30
A74: Residential | B74: Rate Rider for Smart Meter Incremental Revenue Requirement – in effect until the effective date of the next cost of service-based rate order | H74: $ | I74: 2.84 | K74: 1_C_MSC_Rate_Rider_2
A75: Residential
A76: Residential
A77: Residential
A78: Residential
A79: Residential | B79: MONTHLY RATES AND CHARGES - Regulatory Component
A80: Residential
A81: Residential | B81: Wholesale Market Service Rate | H81: $/kWh | I81: 0.0052 | K81: 1_C_WMSR
A82: Residential | B82: Rural Rate Protection Charge - effective until April 30, 2012 | K82: 1_C_RRPC_untilApril302012 | L82: 2012-04-30
A83: Residential | B83: Rural Rate Protection Charge - effective on and after May 1, 2012 | H83: $/kWh | I83: 0.0011 | K83: 1_C_RRPC_AfterMay12012 | L83: 2012-05-01
A84: Residential | B84: Standard Supply Service - Administrative Charge (if applicable) | H84: $ | I84: 0.25 | K84: 1_C_SSS
A87: General Service Less Than 50 kW | B87: General Service Less Than 50 kW Service Classification
A88: General Service Less Than 50 kW
A89: General Service Less Than 50 kW | B89: This classification refers to a non-residential account taking electricity at 750 volts or less whose monthly peak demand is less than or expected to be less than 50 kW. Further servicing details are available in our Conditions of Service.
A90: General Service Less Than 50 kW
A91: General Service Less Than 50 kW
A92: General Service Less Than 50 kW
A93: General Service Less Than 50 kW
A94: General Service Less Than 50 kW
A95: General Service Less Than 50 kW | B95: APPLICATION
A96: General Service Less Than 50 kW
A97: General Service Less Than 50 kW | B97: The application of these rates and charges shall be in accordance with the Licence of the Distributor and any Code or Order of the Board, and amendments thereto as approved by the Board, which may be applicable to the administration of this schedule.
A98: General Service Less Than 50 kW
A99: General Service Less Than 50 kW
A100: General Service Less Than 50 kW | B100: No rates and charges for the distribution of electricity and charges to meet the costs of any work or service done or furnished for the purpose of the distribution of electricity shall be made except as permitted by this schedule, unless required by the Distributor’s Licence or a Code or Order of the Board, and amendments thereto as approved by the Board, or as specified herein.
A101: General Service Less Than 50 kW
A102: General Service Less Than 50 kW
A103: General Service Less Than 50 kW
A104: General Service Less Than 50 kW | B104: Unless specifically noted, this schedule does not contain any charges for the electricity commodity, be it under the Regulated Price Plan, a contract with a retailer or the wholesale market price, as applicable.
A105: General Service Less Than 50 kW
A106: General Service Less Than 50 kW
A107: General Service Less Than 50 kW | B107: It should be noted that this schedule does not list any charges, assessments or credits that are required by law to be invoiced by a distributor and that are not subject to Board approval, such as the Debt Retirement Charge, the Global Adjustment, the Ontario Clean Energy Benefit and the HST.
A108: General Service Less Than 50 kW
A109: General Service Less Than 50 kW
A110: General Service Less Than 50 kW
A111: General Service Less Than 50 kW | B111: MONTHLY RATES AND CHARGES - Delivery Component (If applicable, Effective Date MUST be included in rate description)
A112: General Service Less Than 50 kW | B112: Service Charge | H112: $ | I112: 33.11 | K112: 2_C_MSC
A113: General Service Less Than 50 kW | B113: Distribution Volumetric Rate | H113: $/kWh | I113: 0.0101 | K113: 2_C_VC
A114: General Service Less Than 50 kW | B114: Low Voltage Service Rate | H114: $/kWh | I114: 0.001 | K114: 2_C_LVrate
A115: General Service Less Than 50 kW | B115: Rate Rider for Deferral/Variance Account Disposition (2010) – Effective until April 30, 2014 | H115: $/kWh | I115: -0.0013 | K115: 2_C_VC_Rate_Rider_kWh_1 | L115: 2014-04-30
A116: General Service Less Than 50 kW | B116: Rate Rider for Deferral/Variance Account Disposition (2012) – Effective until April 30, 2013 | H116: $/kWh | I116: -0.0009 | K116: 2_C_VC_Rate_Rider_kWh_2 | L116: 2013-04-30
A117: General Service Less Than 50 kW | B117: Rate Rider for Global Adjustment Sub-Account Disposition (2012) – Effective until April 30, 2013 Applicable only for Non-RPP Customers | H117: $/kWh | I117: 0.0017 | K117: 2_C_VC_GA_Rate_Rider_kWh_1 | L117: 2013-04-30
A118: General Service Less Than 50 kW | B118: Rate Rider for Tax Adjustments - Effective until April 30, 2013 | H118: $/kWh | I118: -0.0002 | K118: 2_C_VC_Rate_Rider_kWh_3 | L118: 2013-04-30
A119: General Service Less Than 50 kW | B119: Retail Transmission Rate - Network Service Rate | H119: $/kWh | I119: 0.0052 | K119: 2_C_RTSR_Network
A120: General Service Less Than 50 kW | B120: Retail Transmission Rate - Line and Transformation Connection Service Rate | H120: $/kWh | I120: 0.0029 | K120: 2_C_RTSR_Connection
A121: General Service Less Than 50 kW
A122: General Service Less Than 50 kW
A123: General Service Less Than 50 kW
A124: General Service Less Than 50 kW
A125: General Service Less Than 50 kW
A126: General Service Less Than 50 kW
A127: General Service Less Than 50 kW
A128: General Service Less Than 50 kW
A129: General Service Less Than 50 kW
A130: General Service Less Than 50 kW
A131: General Service Less Than 50 kW
A132: General Service Less Than 50 kW
A133: General Service Less Than 50 kW
A134: General Service Less Than 50 kW
A135: General Service Less Than 50 kW
A136: General Service Less Than 50 kW | B136: Rate Rider for Disposition of Residual Historical Smart Meter Costs – effective until April 30, 2013 | H136: $ | I136: 5.77 | K136: 2_C_MSC_Rate_Rider_1 | L136: 2013-04-30
A137: General Service Less Than 50 kW | B137: Rate Rider for Smart Meter Incremental Revenue Requirement – in effect until the effective date of the next cost of service-based rate order | H137: $ | I137: 7.02 | K137: 2_C_MSC_Rate_Rider_2
A138: General Service Less Than 50 kW
A139: General Service Less Than 50 kW
A140: General Service Less Than 50 kW
A141: General Service Less Than 50 kW
A142: General Service Less Than 50 kW | B142: MONTHLY RATES AND CHARGES - Regulatory Component
A143: General Service Less Than 50 kW
A144: General Service Less Than 50 kW | B144: Wholesale Market Service Rate | H144: $/kWh | I144: 0.0052 | K144: 2_C_WMSR
A145: General Service Less Than 50 kW | B145: Rural Rate Protection Charge - effective until April 30, 2012 | K145: 2_C_RRPC_untilApril302012 | L145: 2012-04-30
A146: General Service Less Than 50 kW | B146: Rural Rate Protection Charge - effective on and after May 1, 2012 | H146: $/kWh | I146: 0.0011 | K146: 2_C_RRPC_AfterMay12012 | L146: 2012-05-01
A147: General Service Less Than 50 kW | B147: Standard Supply Service - Administrative Charge (if applicable) | H147: $ | I147: 0.25 | K147: 2_C_SSS
A150: General Service 50 to 4,999 kW | B150: General Service 50 to 4,999 kW Service Classification
A151: General Service 50 to 4,999 kW
A152: General Service 50 to 4,999 kW | B152: This classification refers to a non-residential account whose monthly average peak demand is equal to or greater than, or is expected to be equal to or greater than, 50 kW but less than 5000 kW. Further servicing details are available in our Conditions of Service.
A153: General Service 50 to 4,999 kW
A154: General Service 50 to 4,999 kW
A155: General Service 50 to 4,999 kW
A156: General Service 50 to 4,999 kW
A157: General Service 50 to 4,999 kW
A158: General Service 50 to 4,999 kW | B158: APPLICATION
A159: General Service 50 to 4,999 kW
A160: General Service 50 to 4,999 kW | B160: The application of these rates and charges shall be in accordance with the Licence of the Distributor and any Code or Order of the Board, and amendments thereto as approved by the Board, which may be applicable to the administration of this schedule.
A161: General Service 50 to 4,999 kW
A162: General Service 50 to 4,999 kW
A163: General Service 50 to 4,999 kW | B163: No rates and charges for the distribution of electricity and charges to meet the costs of any work or service done or furnished for the purpose of the distribution of electricity shall be made except as permitted by this schedule, unless required by the Distributor’s Licence or a Code or Order of the Board, and amendments thereto as approved by the Board, or as specified herein.
A164: General Service 50 to 4,999 kW
A165: General Service 50 to 4,999 kW
A166: General Service 50 to 4,999 kW
A167: General Service 50 to 4,999 kW | B167: Unless specifically noted, this schedule does not contain any charges for the electricity commodity, be it under the Regulated Price Plan, a contract with a retailer or the wholesale market price, as applicable.
A168: General Service 50 to 4,999 kW
A169: General Service 50 to 4,999 kW
A170: General Service 50 to 4,999 kW | B170: It should be noted that this schedule does not list any charges, assessments or credits that are required by law to be invoiced by a distributor and that are not subject to Board approval, such as the Debt Retirement Charge, the Global Adjustment, the Ontario Clean Energy Benefit and the HST.
A171: General Service 50 to 4,999 kW
A172: General Service 50 to 4,999 kW
A173: General Service 50 to 4,999 kW
A174: General Service 50 to 4,999 kW | B174: MONTHLY RATES AND CHARGES - Delivery Component (If applicable, Effective Date MUST be included in rate description)
A175: General Service 50 to 4,999 kW | B175: Service Charge | H175: $ | I175: 185.34 | K175: 3_C_MSC
A176: General Service 50 to 4,999 kW | B176: Distribution Volumetric Rate | H176: $/kW | I176: 2.1822 | K176: 3_C_VC
A177: General Service 50 to 4,999 kW | B177: Low Voltage Service Rate | H177: $/kW | I177: 0.3999 | K177: 3_C_LVrate
A178: General Service 50 to 4,999 kW | B178: Rate Rider for Deferral/Variance Account Disposition (2010) – Effective until April 30, 2014 | H178: $/kW | I178: -0.5054 | K178: 3_C_VC_Rate_Rider_kW_1 | L178: 2014-04-30
A179: General Service 50 to 4,999 kW | B179: Rate Rider for Deferral/Variance Account Disposition (2012) – Effective until April 30, 2013 | H179: $/kW | I179: -0.7635 | K179: 3_C_VC_Rate_Rider_kW_2 | L179: 2013-04-30
A180: General Service 50 to 4,999 kW | B180: Rate Rider for Global Adjustment Sub-Account Disposition (2012) – Effective until April 30, 2013 Applicable only for Non-RPP Customers | H180: $/kW | I180: 0.7235 | K180: 3_C_VC_GA_Rate_Rider_kW_1 | L180: 2013-04-30
A181: General Service 50 to 4,999 kW | B181: Rate Rider for Tax Adjustments - Effective until April 30, 2013 | H181: $/kW | I181: -0.0286 | K181: 3_C_VC_Rate_Rider_kW_3 | L181: 2013-04-30
A182: General Service 50 to 4,999 kW | B182: Retail Transmission Rate - Network Service Rate | H182: $/kW | I182: 2.1108 | K182: 3_C_RTSR_Network
A183: General Service 50 to 4,999 kW | B183: Retail Transmission Rate - Line and Transformation Connection Service Rate | H183: $/kW | I183: 1.1463 | K183: 3_C_RTSR_Connection
A184: General Service 50 to 4,999 kW
A185: General Service 50 to 4,999 kW
A186: General Service 50 to 4,999 kW
A187: General Service 50 to 4,999 kW
A188: General Service 50 to 4,999 kW
A189: General Service 50 to 4,999 kW
A190: General Service 50 to 4,999 kW
A191: General Service 50 to 4,999 kW
A192: General Service 50 to 4,999 kW
A193: General Service 50 to 4,999 kW
A194: General Service 50 to 4,999 kW
A195: General Service 50 to 4,999 kW
A196: General Service 50 to 4,999 kW
A197: General Service 50 to 4,999 kW
A198: General Service 50 to 4,999 kW
A199: General Service 50 to 4,999 kW
A200: General Service 50 to 4,999 kW
A201: General Service 50 to 4,999 kW
A202: General Service 50 to 4,999 kW
A203: General Service 50 to 4,999 kW
A204: General Service 50 to 4,999 kW
A205: General Service 50 to 4,999 kW | B205: MONTHLY RATES AND CHARGES - Regulatory Component
A206: General Service 50 to 4,999 kW
A207: General Service 50 to 4,999 kW | B207: Wholesale Market Service Rate | H207: =H81 -> $/kWh | I207: =I81 -> 0.0052 | K207: 3_C_WMSR
A208: General Service 50 to 4,999 kW | B208: Rural Rate Protection Charge - effective until April 30, 2012 | K208: 3_C_RRPC_untilApril302012 | L208: 2012-04-30
A209: General Service 50 to 4,999 kW | B209: Rural Rate Protection Charge - effective on and after May 1, 2012 | H209: =H83 -> $/kWh | I209: =I83 -> 0.0011 | K209: 3_C_RRPC_AfterMay12012 | L209: 2012-05-01
A210: General Service 50 to 4,999 kW | B210: Standard Supply Service - Administrative Charge (if applicable) | H210: =H84 -> $ | I210: =I84 -> 0.25 | K210: 3_C_SSS
A213: Unmetered Scattered Load | B213: Unmetered Scattered Load Service Classification
A214: Unmetered Scattered Load
A215: Unmetered Scattered Load | B215: This classification refers to an account taking electricity at 750 volts or less whose average monthly maximum demand is less than, or is forecast to be less than, 50 kW and the consumption is unmetered. Such connections include cable TV power packs, bus shelters, telephone booths, traffic lights, railway crossings, etc. The level of the consumption will be agreed to by the distributor and the customer, based on detailed manufacturer information/documentation with regard to electrical consumption of the unmetered load or periodic monitoring of actual consumption. Further servicing details are available in our Conditions of Service.
... 235 more rows

Sheet 4. Hidden (hidden)
M1: Current Rate Classes | N1: Changed to Rate Classes | O1: Values in A that are NOT in B | P1: Values in B that are Not in A | Q1: Count of A | R1: Count of B
M2: Residential | N2: Residential | Q2: 7 | R2: 7
M3: General Service Less Than 50 kW | N3: General Service Less Than 50 kW
M4: General Service 50 to 4,999 kW | N4: General Service 50 to 4,999 kW
M5: Unmetered Scattered Load | N5: Unmetered Scattered Load
M6: Sentinel Lighting | N6: Sentinel Lighting
M7: Street Lighting | N7: Street Lighting
M8: MicroFit | N8: MicroFit
A24: Residential | B24: Residential Service Classification
A25: Residential
A26: Residential | B26: This classification refers to the supply of electrical energy to residential customers residing in detached, semi detached, townhouse (freehold or condominium) dwelling units duplexes or triplexes. Basic connection is defined as 100 amp 12/240 volt overhead service. Further servicing details are available in the distributor’s Conditions of Service.
A27: Residential
A28: Residential
A29: Residential
A30: Residential
A31: Residential
A32: Residential | B32: APPLICATION
A33: Residential
A34: Residential | B34: The application of these rates and charges shall be in accordance with the Licence of the Distributor and any Code or Order of the Board, and amendments thereto as approved by the Board, which may be applicable to the administration of this schedule.
A35: Residential
A36: Residential
A37: Residential | B37: No rates and charges for the distribution of electricity and charges to meet the costs of any work or service done or furnished for the purpose of the distribution of electricity shall be made except as permitted by this schedule, unless required by the Distributor’s Licence or a Code or Order of the Board, and amendments thereto as approved by the Board, or as specified herein.
A38: Residential
A39: Residential
A40: Residential
A41: Residential | B41: Unless specifically noted, this schedule does not contain any charges for the electricity commodity, be it under the Regulated Price Plan, a contract with a retailer or the wholesale market price, as applicable.
A42: Residential
A43: Residential
A44: Residential | B44: It should be noted that this schedule does not list any charges, assessments or credits that are required by law to be invoiced by a distributor and that are not subject to Board approval, such as the Debt Retirement Charge, the Global Adjustment, the Ontario Clean Energy Benefit and the HST.
A45: Residential
A46: Residential
A47: Residential
A48: Residential | B48: MONTHLY RATES AND CHARGES - Delivery Component (If applicable, Effective Date MUST be included in rate description)
A49: Residential | B49: Service Charge | H49: $ | I49: 16.26
A50: Residential | B50: Distribution Volumetric Rate | H50: $/kWh | I50: 0.014
A51: Residential | B51: Low Voltage Service Rate | H51: $/kWh | I51: 0.0011
A52: Residential | B52: Rate Rider for Deferral/Variance Account Disposition (2010) – Effective until April 30, 2014 | H52: $/kWh | I52: -0.0013
A53: Residential | B53: Rate Rider for Deferral/Variance Account Disposition (2012) – Effective until April 30, 2013 | H53: $/kWh | I53: 0
A54: Residential | B54: Rate Rider for Global Adjustment Sub-Account Disposition (2012) – Effective until April 30, 2013 Applicable only for Non-RPP Customers | H54: $/kWh | I54: 0.0017
A55: Residential | B55: Rate Rider for Tax Adjustments - Effective until April 30, 2013 | H55: $/kWh | I55: -0.0003
A56: Residential | B56: Retail Transmission Rate - Network Service Rate | H56: $/kWh | I56: 0.0056
A57: Residential | B57: Retail Transmission Rate - Line and Transformation Connection Service Rate | H57: $/kWh | I57: 0.0032
A58: Residential
A59: Residential
A60: Residential
A61: Residential
A62: Residential
A63: Residential
A64: Residential
A65: Residential
A66: Residential
A67: Residential
A68: Residential
A69: Residential
A70: Residential
A71: Residential
A72: Residential
A73: Residential | B73: Rider for Disposition of Residual Historical Smart Meter Costs – effective until April 30, 2013 | H73: $ | I73: -1.21
A74: Residential | B74: Rate Rider for Smart Meter Incremental Revenue Requirement – in effect until the effective date of the next cost of service-based rate order | H74: $ | I74: 2.84
A75: Residential
A76: Residential
A77: Residential
A78: Residential
A79: Residential | B79: MONTHLY RATES AND CHARGES - Regulatory Component
A80: Residential
A81: Residential | B81: Wholesale Market Service Rate | H81: $/kWh | I81: 0.0052
A82: Residential | B82: Rural Rate Protection Charge - effective until April 30, 2012
A83: Residential | B83: Rural Rate Protection Charge - effective on and after May 1, 2012 | H83: $/kWh | I83: 0.0011
A84: Residential | B84: Standard Supply Service - Administrative Charge (if applicable) | H84: $ | I84: 0.25
A87: General Service Less Than 50 kW | B87: General Service Less Than 50 kW Service Classification
A88: General Service Less Than 50 kW
A89: General Service Less Than 50 kW | B89: This classification refers to a non-residential account taking electricity at 750 volts or less whose monthly peak demand is less than or expected to be less than 50 kW. Further servicing details are available in our Conditions of Service.
A90: General Service Less Than 50 kW
A91: General Service Less Than 50 kW
A92: General Service Less Than 50 kW
A93: General Service Less Than 50 kW
A94: General Service Less Than 50 kW
A95: General Service Less Than 50 kW | B95: APPLICATION
A96: General Service Less Than 50 kW
A97: General Service Less Than 50 kW | B97: The application of these rates and charges shall be in accordance with the Licence of the Distributor and any Code or Order of the Board, and amendments thereto as approved by the Board, which may be applicable to the administration of this schedule.
A98: General Service Less Than 50 kW
A99: General Service Less Than 50 kW
A100: General Service Less Than 50 kW | B100: No rates and charges for the distribution of electricity and charges to meet the costs of any work or service done or furnished for the purpose of the distribution of electricity shall be made except as permitted by this schedule, unless required by the Distributor’s Licence or a Code or Order of the Board, and amendments thereto as approved by the Board, or as specified herein.
A101: General Service Less Than 50 kW
A102: General Service Less Than 50 kW
A103: General Service Less Than 50 kW
A104: General Service Less Than 50 kW | B104: Unless specifically noted, this schedule does not contain any charges for the electricity commodity, be it under the Regulated Price Plan, a contract with a retailer or the wholesale market price, as applicable.
A105: General Service Less Than 50 kW
A106: General Service Less Than 50 kW
A107: General Service Less Than 50 kW | B107: It should be noted that this schedule does not list any charges, assessments or credits that are required by law to be invoiced by a distributor and that are not subject to Board approval, such as the Debt Retirement Charge, the Global Adjustment, the Ontario Clean Energy Benefit and the HST.
A108: General Service Less Than 50 kW
A109: General Service Less Than 50 kW
A110: General Service Less Than 50 kW
A111: General Service Less Than 50 kW | B111: MONTHLY RATES AND CHARGES - Delivery Component (If applicable, Effective Date MUST be included in rate description)
A112: General Service Less Than 50 kW | B112: Service Charge | H112: $ | I112: 33.11
A113: General Service Less Than 50 kW | B113: Distribution Volumetric Rate | H113: $/kWh | I113: 0.0101
A114: General Service Less Than 50 kW | B114: Low Voltage Service Rate | H114: $/kWh | I114: 0.001
A115: General Service Less Than 50 kW | B115: Rate Rider for Deferral/Variance Account Disposition (2010) – Effective until April 30, 2014 | H115: $/kWh | I115: -0.0013
A116: General Service Less Than 50 kW | B116: Rate Rider for Deferral/Variance Account Disposition (2012) – Effective until April 30, 2013 | H116: $/kWh | I116: -0.0009
A117: General Service Less Than 50 kW | B117: Rate Rider for Global Adjustment Sub-Account Disposition (2012) – Effective until April 30, 2013 Applicable only for Non-RPP Customers | H117: $/kWh | I117: 0.0017
A118: General Service Less Than 50 kW | B118: Rate Rider for Tax Adjustments - Effective until April 30, 2013 | H118: $/kWh | I118: -0.0002
A119: General Service Less Than 50 kW | B119: Retail Transmission Rate - Network Service Rate | H119: $/kWh | I119: 0.0052
A120: General Service Less Than 50 kW | B120: Retail Transmission Rate - Line and Transformation Connection Service Rate | H120: $/kWh | I120: 0.0029
A121: General Service Less Than 50 kW
A122: General Service Less Than 50 kW
A123: General Service Less Than 50 kW
A124: General Service Less Than 50 kW
A125: General Service Less Than 50 kW
A126: General Service Less Than 50 kW
A127: General Service Less Than 50 kW
A128: General Service Less Than 50 kW
A129: General Service Less Than 50 kW
A130: General Service Less Than 50 kW
A131: General Service Less Than 50 kW
A132: General Service Less Than 50 kW
A133: General Service Less Than 50 kW
A134: General Service Less Than 50 kW
A135: General Service Less Than 50 kW
A136: General Service Less Than 50 kW | B136: Rate Rider for Disposition of Residual Historical Smart Meter Costs – effective until April 30, 2013 | H136: $ | I136: 5.77
A137: General Service Less Than 50 kW | B137: Rate Rider for Smart Meter Incremental Revenue Requirement – in effect until the effective date of the next cost of service-based rate order | H137: $ | I137: 7.02
A138: General Service Less Than 50 kW
A139: General Service Less Than 50 kW
A140: General Service Less Than 50 kW
A141: General Service Less Than 50 kW
A142: General Service Less Than 50 kW | B142: MONTHLY RATES AND CHARGES - Regulatory Component
A143: General Service Less Than 50 kW
A144: General Service Less Than 50 kW | B144: Wholesale Market Service Rate | H144: =H81 -> $/kWh | I144: =I81 -> 0.0052
A145: General Service Less Than 50 kW | B145: Rural Rate Protection Charge - effective until April 30, 2012
A146: General Service Less Than 50 kW | B146: Rural Rate Protection Charge - effective on and after May 1, 2012 | H146: =H83 -> $/kWh | I146: =I83 -> 0.0011
A147: General Service Less Than 50 kW | B147: Standard Supply Service - Administrative Charge (if applicable) | H147: =H84 -> $ | I147: =I84 -> 0.25
A150: General Service 50 to 2,499 kW | B150: General Service 50 to 2,499 kW Service Classification
A151: General Service 50 to 2,499 kW
A152: General Service 50 to 2,499 kW | B152: This classification refers to a non-residential account whose monthly average peak demand is equal to or greater than, or is expected to be equal to or greater than, 50 kW but less than 5000 kW. Further servicing details are available in our Conditions of Service.
A153: General Service 50 to 2,499 kW
A154: General Service 50 to 2,499 kW
A155: General Service 50 to 2,499 kW
A156: General Service 50 to 2,499 kW
A157: General Service 50 to 2,499 kW
A158: General Service 50 to 2,499 kW | B158: APPLICATION
A159: General Service 50 to 2,499 kW
A160: General Service 50 to 2,499 kW | B160: The application of these rates and charges shall be in accordance with the Licence of the Distributor and any Code or Order of the Board, and amendments thereto as approved by the Board, which may be applicable to the administration of this schedule.
A161: General Service 50 to 2,499 kW
A162: General Service 50 to 2,499 kW
A163: General Service 50 to 2,499 kW | B163: No rates and charges for the distribution of electricity and charges to meet the costs of any work or service done or furnished for the purpose of the distribution of electricity shall be made except as permitted by this schedule, unless required by the Distributor’s Licence or a Code or Order of the Board, and amendments thereto as approved by the Board, or as specified herein.
A164: General Service 50 to 2,499 kW
A165: General Service 50 to 2,499 kW
A166: General Service 50 to 2,499 kW
A167: General Service 50 to 2,499 kW | B167: Unless specifically noted, this schedule does not contain any charges for the electricity commodity, be it under the Regulated Price Plan, a contract with a retailer or the wholesale market price, as applicable.
A168: General Service 50 to 2,499 kW
A169: General Service 50 to 2,499 kW
A170: General Service 50 to 2,499 kW | B170: It should be noted that this schedule does not list any charges, assessments or credits that are required by law to be invoiced by a distributor and that are not subject to Board approval, such as the Debt Retirement Charge, the Global Adjustment, the Ontario Clean Energy Benefit and the HST.
A171: General Service 50 to 2,499 kW
A172: General Service 50 to 2,499 kW
A173: General Service 50 to 2,499 kW
A174: General Service 50 to 2,499 kW | B174: MONTHLY RATES AND CHARGES - Delivery Component (If applicable, Effective Date MUST be included in rate description)
A175: General Service 50 to 2,499 kW | B175: Service Charge | H175: $ | I175: 33.11
A176: General Service 50 to 2,499 kW | B176: Distribution Volumetric Rate | H176: $/kWh | I176: 0.0101
A177: General Service 50 to 2,499 kW | B177: Low Voltage Service Rate
A178: General Service 50 to 2,499 kW
A179: General Service 50 to 2,499 kW
A180: General Service 50 to 2,499 kW
A181: General Service 50 to 2,499 kW
A182: General Service 50 to 2,499 kW
A183: General Service 50 to 2,499 kW
A184: General Service 50 to 2,499 kW
A185: General Service 50 to 2,499 kW
A186: General Service 50 to 2,499 kW
A187: General Service 50 to 2,499 kW
A188: General Service 50 to 2,499 kW
A189: General Service 50 to 2,499 kW
A190: General Service 50 to 2,499 kW
A191: General Service 50 to 2,499 kW
A192: General Service 50 to 2,499 kW
A193: General Service 50 to 2,499 kW
A194: General Service 50 to 2,499 kW
A195: General Service 50 to 2,499 kW
A196: General Service 50 to 2,499 kW
A197: General Service 50 to 2,499 kW
A198: General Service 50 to 2,499 kW
A199: General Service 50 to 2,499 kW | B199: Rate Rider for Disposition of Residual Historical Smart Meter Costs – effective until April 30, 2013 | H199: $ | I199: 5.77
A200: General Service 50 to 2,499 kW | B200: Rate Rider for Smart Meter Incremental Revenue Requirement – in effect until the effective date of the next cost of service-based rate order | H200: $ | I200: 7.02
A201: General Service 50 to 2,499 kW
A202: General Service 50 to 2,499 kW
A203: General Service 50 to 2,499 kW
A204: General Service 50 to 2,499 kW
A205: General Service 50 to 2,499 kW | B205: MONTHLY RATES AND CHARGES - Regulatory Component
A206: General Service 50 to 2,499 kW
A207: General Service 50 to 2,499 kW | B207: Wholesale Market Service Rate | H207: =H81 -> $/kWh | I207: 0.0052
A208: General Service 50 to 2,499 kW | B208: Rural Rate Protection Charge - effective until April 30, 2012 | H208: 0 | I208: 0
A209: General Service 50 to 2,499 kW | B209: Rural Rate Protection Charge - effective on and after May 1, 2012 | H209: $/kWh | I209: 0.0011
A210: General Service 50 to 2,499 kW | B210: Standard Supply Service - Administrative Charge (if applicable) | H210: $ | I210: 0.25
A213: Unmetered Scattered Load | B213: Unmetered Scattered Load Service Classification
A214: Unmetered Scattered Load
A215: Unmetered Scattered Load
A216: Unmetered Scattered Load
A217: Unmetered Scattered Load
A218: Unmetered Scattered Load
A219: Unmetered Scattered Load
A220: Unmetered Scattered Load
A221: Unmetered Scattered Load | B221: APPLICATION
... 229 more rows

Sheet 5. 2013 Continuity Schedule
C15: Please complete the following continuity schedule for the following Deferral / Variance Accounts. Enter information into green cells only. If you have received approval to dispose of balances from prior years, the starting point for entries in the 2013 DVA schedule below will be the balance sheet date as per your G/L for which you received approval. For example, if in the 2012 EDR process (CoS or IRM) you received approval for the December 31, 2010 balances, the starting point for your entries below should be the adjustment column BF for principal and column BK for interest. This will allow for the correct starting point for the 2011 opening balance columns (for both principal and interest) without requiring entries dating back to the beginning of the continuity schedule ie: Jan 1, 2005. Please refer to the footnotes for further instructions.
E19: 2005 | O19: 2006 | Y19: 2007 | AI19: 2008 | AS19: 2009 | BC19: 2010 | BM19: 2011 | BZ19: 2012 | CD19: Projected Interest on Dec-31-11 Balances | CG19: 2.1.7 RRR
C20: Account Descriptions | D20: Account Number | E20: Opening Principal Amounts as of Jan-1-05 | F20: Transactions Debit / (Credit) during 2005 excluding interest and adjustments 2 | G20: Board-Approved Disposition during 2005 | H20: Adjustments during 2005 - other 2 | I20: Closing Principal Balance as of Dec-31-05 | J20: Opening Interest Amounts as of Jan-1-05 | K20: Interest Jan-1 to Dec-31-05 | L20: Board-Approved Disposition during 2005 | M20: Adjustments during 2005 - other 2 | N20: Closing Interest Amounts as of Dec-31-05 | O20: Opening Principal Amounts as of Jan-1-06 | P20: Transactions Debit / (Credit) during 2006 excluding interest and adjustments 2 | Q20: Board-Approved Disposition during 2006 | R20: Adjustments during 2006 - other 2 | S20: Closing Principal Balance as of Dec-31-06 | T20: Opening Interest Amounts as of Jan-1-06 | U20: Interest Jan-1 to Dec-31-06 | V20: Board-Approved Disposition during 2006 1 | W20: Adjustments during 2006 - other 2 | X20: Closing Interest Amounts as of Dec-31-06 | Y20: Opening Principal Amounts as of Jan-1-07 | Z20: Transactions Debit / (Credit) during 2007 excluding interest and adjustments 2 | AA20: Board-Approved Disposition during 2007 | AB20: Adjustments during 2007 - other 1 | AC20: Closing Principal Balance as of Dec-31-07 | AD20: Opening Interest Amounts as of Jan-1-07 | AE20: Interest Jan-1 to Dec-31-07 | AF20: Board-Approved Disposition during 2007 | AG20: Adjustments during 2007 - other 1 | AH20: Closing Interest Amounts as of Dec-31-07 | AI20: Opening Principal Amounts as of Jan-1-08 | AJ20: Transactions Debit / (Credit) during 2008 excluding interest and adjustments 2 | AK20: Board-Approved Disposition during 2008 | AL20: Adjustments during 2008 - other 1 | AM20: Closing Principal Balance as of Dec-31-08 | AN20: Opening Interest Amounts as of Jan-1-08 | AO20: Interest Jan-1 to Dec-31-08 | AP20: Board-Approved Disposition during 2008 | AQ20: Adjustments during 2008 - other 1 | AR20: Closing Interest Amounts as of Dec-31-08 | AS20: Opening Principal Amounts as of Jan-1-09 | AT20: Transactions Debit / (Credit) during 2009 excluding interest and adjustments 2 | AU20: Board-Approved Disposition during 2009 | AV20: Adjustments during 2009 - other 1 | AW20: Closing Principal Balance as of Dec-31-09 | AX20: Opening Interest Amounts as of Jan-1-09 | AY20: Interest Jan-1 to Dec-31-09 | AZ20: Board-Approved Disposition during 2009 | BA20: Adjustments during 2009 - other 1 | BB20: Closing Interest Amounts as of Dec-31-09 | BC20: Opening Principal Amounts as of Jan-1-10 | BD20: Transactions Debit / (Credit) during 2010 excluding interest and adjustments 2 | BE20: Board-Approved Disposition during 2010 | BF20: Adjustments during 2010 - other 1 | BG20: Closing Principal Balance as of Dec-31-10 | BH20: Opening Interest Amounts as of Jan-1-10 | BI20: Interest Jan-1 to Dec-31-10 | BJ20: Board-Approved Disposition during 2010 | BK20: Adjustments during 2010 - other 2 | BL20: Closing Interest Amounts as of Dec-31-10 | BM20: Opening Principal Amounts as of Jan-1-11 | BN20: Transactions Debit / (Credit) during 2011 excluding interest and adjustments 2 | BO20: Board-Approved Disposition during 2011 | BP20: Other 1 Adjustments during Q1 2011 | BQ20: Other 1 Adjustments during Q2 2011 | BR20: Other 1 Adjustments during Q3 2011 | BS20: Other 1 Adjustments during Q4 2011 | BT20: Closing Principal Balance as of Dec-31-11 | BU20: Opening Interest Amounts as of Jan-1-11 | BV20: Interest Jan-1 to Dec-31-11 | BW20: Board-Approved Disposition during 2011 | BX20: Adjustments during 2011 - other 1 | BY20: Closing Interest Amounts as of Dec-31-11 | BZ20: Principal Disposition during 2012 - instructed by Board | CA20: Interest Disposition during 2012 - instructed by Board | CB20: Closing Principal Balances as of Dec 31-11 Adjusted for Dispositions during 2012 | CC20: Closing Interest Balances as of Dec 31-11 Adjusted for Dispositions during 2012 | CD20: Projected Interest from Jan 1, 2012 to December 31, 2012 on Dec 31 -11 balance adjusted for disposition during 2012 3 | CE20: Projected Interest from January 1, 2013 to April 30, 2013 on Dec 31 -11 balance adjusted for disposition during 2012 3 | CF20: Total Claim | CG20: As of Dec 31-11 | CH20: Variance RRR vs. 2011 Balance (Principal + Interest)
CF22: Claim before Forecasted Transactions
C23: Group 1 Accounts
A24: 1 | C24: LV Variance Account | D24: 1550 | I24: =E24+F24-G24+H24 -> 0 | N24: =J24+K24-L24+M24 -> 0 | O24: =I24 -> 0 | S24: =O24+P24-Q24+R24 -> 0 | T24: =N24 -> 0 | X24: =T24+U24-V24+W24 -> 0 | Y24: =S24 -> 0 | AC24: =Y24+Z24-AA24+AB24 -> 0 | AD24: =X24 -> 0 | AH24: =AD24+AE24-AF24+AG24 -> 0 | AI24: =AC24 -> 0 | AM24: =AI24+AJ24-AK24+AL24 -> 0 | AN24: =AH24 -> 0 | AR24: =AN24+AO24-AP24+AQ24 -> 0 | AS24: =AM24 -> 0 | AW24: =AS24+AT24-AU24+AV24 -> 0 | AX24: =AR24 -> 0 | BB24: =AX24+AY24-AZ24+BA24 -> 0 | BC24: =AW24 -> 0 | BF24: =[4]Sheet1!$G7 -> -198282 | BG24: =BC24+BD24-BE24+BF24 -> -198282 | BH24: =BB24 -> 0 | BK24: =[4]Sheet1!$H7 -> -1984.945951 | BL24: =BH24+BI24-BJ24+BK24 -> -1984.945951 | BM24: =BG24 -> -198282 | BN24: =[5]Sheet1!$L$34-[5]Sheet1!$K$35 -> 118229.49 | BT24: =BM24+BN24-BO24+SUM(BP24:BS24) -> -80052.51 | BU24: =BL24 -> -1984.945951 | BV24: =[5]Sheet1!$L$36 -> -1961.05 | BY24: =BU24+BV24-BW24+BX24 -> -3945.995951 | BZ24: =[6]Sheet1!$H7 -> -198282 | CA24: =[6]Sheet1!$K7 -> -5871 | CB24: =BT24-BZ24 -> 118229.49 | CC24: =BY24-CA24 -> 1925.004049 | CD24: =CB24*1.47% -> 1737.973503 | CE24: =CD24/12*4 -> 579.324501 | CF24: =SUM(CB24:CE24) -> 122471.7921 | CG24: =-83998.14 -> -83998.14 | CH24: =CG24-SUM(BT24,BY24) -> 0.365951
A25: 2 | C25: RSVA - Wholesale Market Service Charge | D25: 1580 | I25: 0 | N25: =J25+K25-L25+M25 -> 0 | O25: =I25 -> 0 | S25: =O25+P25-Q25+R25 -> 0 | T25: =N25 -> 0 | X25: =T25+U25-V25+W25 -> 0 | Y25: =S25 -> 0 | AC25: =Y25+Z25-AA25+AB25 -> 0 | AD25: =X25 -> 0 | AH25: =AD25+AE25-AF25+AG25 -> 0 | AI25: =AC25 -> 0 | AM25: =AI25+AJ25-AK25+AL25 -> 0 | AN25: =AH25 -> 0 | AR25: =AN25+AO25-AP25+AQ25 -> 0 | AS25: =AM25 -> 0 | AW25: =AS25+AT25-AU25+AV25 -> 0 | AX25: =AR25 -> 0 | BB25: =AX25+AY25-AZ25+BA25 -> 0 | BC25: =AW25 -> 0 | BF25: =[4]Sheet1!$G8 -> -315051 | BG25: =BC25+BD25-BE25+SUM(BF25:BF25) -> -315051 | BH25: =BB25 -> 0 | BK25: =[4]Sheet1!$H8 -> 1040.747376 | BL25: =BH25+BI25-BJ25+BK25 -> 1040.747376 | BM25: =BG25 -> -315051 | BN25: =[5]Sheet1!$L$5-[5]Sheet1!$K$6 -> -252218.59 | BT25: =BM25+BN25-BO25+SUM(BP25:BS25) -> -567269.59 | BU25: =BL25 -> 1040.747376 | BV25: =[5]Sheet1!$L$8 -> -6510.21 | BY25: =BU25+BV25-BW25+BX25 -> -5469.462624 | BZ25: =[6]Sheet1!$H8 -> -315051 | CA25: =[6]Sheet1!$K8 -> -5134 | CB25: =BT25-BZ25 -> -252218.59 | CC25: =BY25-CA25 -> -335.4626236 | CD25: -3707.613273 | CE25: =CD25/12*4 -> -1235.871091 | CF25: =SUM(CB25:CE25) -> -257497.537 | CG25: -572738.8 | CH25: =CG25-SUM(BT25,BY25) -> 0.2526236066
A26: 3 | C26: RSVA - Retail Transmission Network Charge | D26: 1584 | I26: 0 | N26: 0 | O26: 0 | S26: 0 | T26: 0 | X26: 0 | Y26: 0 | AC26: 0 | AD26: 0 | AH26: 0 | AI26: 0 | AM26: 0 | AN26: 0 | AR26: 0 | AS26: 0 | AW26: 0 | AX26: 0 | BB26: 0 | BC26: 0 | BF26: =[4]Sheet1!$G9 -> -104307 | BG26: -104307 | BH26: 0 | BK26: =[4]Sheet1!$H9 -> -225.76 | BL26: -225.76 | BM26: -104307 | BN26: =[5]Sheet1!$L$12-[5]Sheet1!$K$14 -> 45312.82 | BT26: -58994.18 | BU26: -225.76 | BV26: =[5]Sheet1!$L$16 -> -1189.05 | BY26: -1414.81 | BZ26: =[6]Sheet1!$H9 -> -104307 | CA26: =[6]Sheet1!$K9 -> -2270 | CB26: 45312.82 | CC26: 855.19 | CD26: 666.098454 | CE26: 222.032818 | CF26: 47056.14127 | CG26: -60391.18 | CH26: 17.81
A27: 4 | C27: RSVA - Retail Transmission Connection Charge | D27: 1586 | I27: =E27+F27-G27+H27 -> 0 | N27: 0 | O27: 0 | S27: 0 | T27: 0 | X27: 0 | Y27: 0 | AC27: 0 | AD27: 0 | AH27: 0 | AI27: 0 | AM27: 0 | AN27: 0 | AR27: 0 | AS27: 0 | AW27: 0 | AX27: 0 | BB27: 0 | BC27: 0 | BF27: =[4]Sheet1!$G10 -> -55452 | BG27: -55452 | BH27: 0 | BK27: =[4]Sheet1!$H10 -> 2645.69061 | BL27: 2645.69061 | BM27: -55452 | BN27: =[5]Sheet1!$L$19-[5]Sheet1!$K$21 -> 6746.41 | BT27: -48705.59 | BU27: 2645.69061 | BV27: =[5]Sheet1!$L$23 -> -766 | BY27: 1879.69061 | BZ27: =[6]Sheet1!$H10 -> -55452 | CA27: =[6]Sheet1!$K10 -> -1559 | CB27: 6746.41 | CC27: 3438.69061 | CD27: 99.172227 | CE27: 33.057409 | CF27: 10317.33025 | CG27: -46826.51 | CH27: -0.6106096927
A28: 5 | C28: RSVA - Power (excluding Global Adjustment) | D28: 1588 | I28: 0 | N28: 0 | O28: 0 | S28: 0 | T28: 0 | X28: 0 | Y28: 0 | AC28: 0 | AD28: 0 | AH28: 0 | AI28: 0 | AM28: 0 | AN28: 0 | AR28: 0 | AS28: 0 | AW28: 0 | AX28: 0 | BB28: 0 | BC28: 0 | BF28: =[4]Sheet1!$G11 -> 126334 | BG28: 126334 | BH28: 0 | BK28: =[4]Sheet1!$H11 -> 5408.134414 | BL28: 5408.134414 | BM28: 126334 | BN28: =[5]Sheet1!$L$26-[5]Sheet1!$K$27 -> -56056.42 | BT28: 70277.58 | BU28: 5408.134414 | BV28: =[7]RSVAs!$O$104 -> -1684.345135 | BY28: 3723.789279 | BZ28: =[6]Sheet1!$H11 -> 126334 | CA28: =[6]Sheet1!$K11 -> -7884 | CB28: -56056.42 | CC28: 11607.78928 | CD28: -824.029374 | CE28: -274.676458 | CF28: -45547.33655 | CG28: 74001 | CH28: -0.3692788917
A29: 6 | C29: RSVA - Power - Sub-account - Global Adjustment | D29: 1588 | I29: 0 | N29: 0 | O29: 0 | S29: 0 | T29: 0 | X29: 0 | Y29: 0 | AC29: 0 | AD29: 0 | AH29: 0 | AI29: 0 | AM29: 0 | AN29: 0 | AR29: 0 | AS29: 0 | AW29: 0 | AX29: 0 | BB29: 0 | BC29: 0 | BF29: =[4]Sheet1!$G12 -> 252342 | BG29: 252342 | BH29: 0 | BK29: =[4]Sheet1!$H12 -> -1500.985054 | BL29: -1500.985054 | BM29: 252342 | BN29: =[5]Sheet1!$L$29 -> 174952.78 | BT29: 427294.78 | BU29: -1500.985054 | BV29: =[5]Sheet1!$L$31-BV28 -> 7451.455135 | BY29: =BU29+BV29-BW29+BX29 -> 5950.470082 | BZ29: =[6]Sheet1!$H12 -> 252342 | CA29: =[6]Sheet1!$K12 -> -3445 | CB29: 174952.78 | CC29: 9395.470082 | CD29: 2571.805866 | CE29: 857.268622 | CF29: 187777.3246 | CG29: 433244 | CH29: -1.250081703
A30: 7 | C30: Recovery of Regulatory Asset Balances | D30: 1590 | I30: 0 | N30: 0 | O30: 0 | S30: 0 | T30: 0 | X30: 0 | Y30: 0 | AC30: 0 | AD30: 0 | AH30: 0 | AI30: 0 | AM30: 0 | AN30: 0 | AR30: 0 | AS30: 0 | AW30: 0 | AX30: 0 | BB30: 0 | BC30: 0 | BG30: 0 | BH30: 0 | BL30: 0 | BM30: 0 | BT30: 0 | BU30: 0 | BY30: =BU30+BV30-BW30+BX30 -> 0 | CB30: 0 | CC30: 0 | CD30: 0 | CE30: 0 | CF30: 0 | CH30: 0
A31: 8 | C31: Disposition and Recovery/Refund of Regulatory Balances (2008)5 | D31: 1595 | I31: 0 | N31: 0 | O31: =I31 -> 0 | S31: 0 | T31: =N31 -> 0 | X31: 0 | Y31: =S31 -> 0 | AC31: 0 | AD31: =X31 -> 0 | AH31: 0 | AI31: =AC31 -> 0 | AM31: 0 | AN31: =AH31 -> 0 | AR31: 0 | AS31: =AM31 -> 0 | AW31: 0 | AX31: =AR31 -> 0 | BB31: 0 | BC31: =AW31 -> 0 | BG31: 0 | BH31: =BB31 -> 0 | BL31: 0 | BM31: =BG31 -> 0 | BT31: 0 | BU31: =BL31 -> 0 | BY31: 0 | CB31: 0 | CC31: 0 | CD31: 0 | CE31: 0 | CF31: 0 | CH31: 0
A32: 9 | C32: Disposition and Recovery/Refund of Regulatory Balances (2009)5 | D32: 1595 | I32: 0 | N32: 0 | O32: 0 | S32: 0 | T32: 0 | X32: 0 | Y32: 0 | AC32: 0 | AD32: 0 | AH32: 0 | AI32: 0 | AM32: 0 | AN32: 0 | AR32: 0 | AS32: 0 | AW32: 0 | AX32: 0 | BB32: 0 | BC32: 0 | BG32: 0 | BH32: 0 | BL32: 0 | BM32: =BG32 -> 0 | BT32: 0 | BU32: =BL32 -> 0 | BY32: 0 | CB32: 0 | CC32: 0 | CD32: 0 | CE32: 0 | CF32: 0 | CH32: 0
A33: 9 | C33: Disposition and Recovery/Refund of Regulatory Balances (2010)5 | D33: 1595 | I33: =E33+F33-G33+H33 -> 0 | N33: =J33+K33-L33+M33 -> 0 | O33: =I33 -> 0 | S33: =O33+P33-Q33+R33 -> 0 | T33: =N33 -> 0 | X33: =T33+U33-V33+W33 -> 0 | Y33: =S33 -> 0 | AC33: =Y33+Z33-AA33+AB33 -> 0 | AD33: =X33 -> 0 | AH33: =AD33+AE33-AF33+AG33 -> 0 | AI33: =AC33 -> 0 | AM33: =AI33+AJ33-AK33+AL33 -> 0 | AN33: =AH33 -> 0 | AR33: =AN33+AO33-AP33+AQ33 -> 0 | AS33: =AM33 -> 0 | AW33: =AS33+AT33-AU33+AV33 -> 0 | AX33: =AR33 -> 0 | BB33: =AX33+AY33-AZ33+BA33 -> 0 | BC33: =AW33 -> 0 | BG33: 0 | BH33: =BB33 -> 0 | BL33: =BH33+BI33-BJ33+BK33 -> 0 | BM33: =BG33 -> 0 | BT33: =BM33+BN33-BO33+SUM(BP33:BS33) -> 0 | BU33: =BL33 -> 0 | BY33: =BU33+BV33-BW33+BX33 -> 0 | CB33: =BT33-BZ33 -> 0 | CC33: =BY33-CA33 -> 0 | CD33: 0 | CE33: =CD33/12*4 -> 0 | CF33: 0 | CH33: =CG33-SUM(BT33,BY33) -> 0
C35: Group 1 Sub-Total (including Account 1588 - Global Adjustment) | E35: =SUM(E24:E33) -> 0 | F35: =SUM(F24:F33) -> 0 | G35: 0 | H35: 0 | I35: 0 | J35: 0 | K35: 0 | L35: 0 | M35: 0 | N35: 0 | O35: 0 | P35: 0 | Q35: 0 | R35: 0 | S35: 0 | T35: 0 | U35: 0 | V35: 0 | W35: 0 | X35: 0 | Y35: 0 | Z35: 0 | AA35: 0 | AB35: 0 | AC35: 0 | AD35: 0 | AE35: 0 | AF35: 0 | AG35: 0 | AH35: 0 | AI35: 0 | AJ35: 0 | AK35: 0 | AL35: 0 | AM35: 0 | AN35: 0 | AO35: 0 | AP35: 0 | AQ35: 0 | AR35: 0 | AS35: 0 | AT35: 0 | AU35: 0 | AV35: 0 | AW35: 0 | AX35: 0 | AY35: 0 | AZ35: 0 | BA35: 0 | BB35: 0 | BC35: 0 | BD35: 0 | BE35: 0 | BF35: -294416 | BG35: -294416 | BH35: 0 | BI35: 0 | BJ35: 0 | BK35: 5382.881396 | BL35: 5382.881396 | BM35: -294416 | BN35: 36966.49 | BO35: 0 | BP35: 0 | BQ35: 0 | BR35: =SUM(BR24:BR33) -> 0 | BS35: 0 | BT35: -257449.51 | BU35: 5382.881396 | BV35: -4659.2 | BW35: 0 | BX35: 0 | BY35: 723.6813957 | BZ35: -294416 | CA35: -26163 | CB35: 36966.49 | CC35: 26886.6814 | CD35: 543.407403 | CE35: 181.135801 | CF35: 64577.7146 | CG35: -256709.63 | CH35: 16.19860432
C36: Group 1 Sub-Total (excluding Account 1588 - Global Adjustment) | E36: =E35-E37 -> 0 | F36: =F35-F37 -> 0 | G36: =G35-G37 -> 0 | H36: 0 | I36: 0 | J36: 0 | K36: 0 | L36: =L35-L37 -> 0 | M36: =M35-M37 -> 0 | N36: 0 | O36: 0 | P36: 0 | Q36: 0 | R36: 0 | S36: 0 | T36: 0 | U36: 0 | V36: =V35-V37 -> 0 | W36: =W35-W37 -> 0 | X36: =X35-X37 -> 0 | Y36: 0 | Z36: 0 | AA36: 0 | AB36: 0 | AC36: 0 | AD36: 0 | AE36: 0 | AF36: =AF35-AF37 -> 0 | AG36: =AG35-AG37 -> 0 | AH36: =AH35-AH37 -> 0 | AI36: 0 | AJ36: 0 | AK36: 0 | AL36: 0 | AM36: 0 | AN36: 0 | AO36: 0 | AP36: =AP35-AP37 -> 0 | AQ36: =AQ35-AQ37 -> 0 | AR36: =AR35-AR37 -> 0 | AS36: 0 | AT36: 0 | AU36: 0 | AV36: 0 | AW36: 0 | AX36: 0 | AY36: 0 | AZ36: =AZ35-AZ37 -> 0 | BA36: =BA35-BA37 -> 0 | BB36: =BB35-BB37 -> 0 | BC36: 0 | BD36: 0 | BE36: 0 | BF36: -546758 | BG36: -546758 | BH36: 0 | BI36: 0 | BJ36: 0 | BK36: 6883.866449 | BL36: 6883.866449 | BM36: -546758 | BN36: -137986.29 | BO36: 0 | BP36: 0 | BQ36: 0 | BR36: 0 | BS36: =BS35-BS37 -> 0 | BT36: -684744.29 | BU36: 6883.866449 | BV36: -12110.65514 | BW36: 0 | BX36: 0 | BY36: -5226.788686 | BZ36: -546758 | CA36: -22718 | CB36: -137986.29 | CC36: 17491.21131 | CD36: -2028.398463 | CE36: -676.132821 | CF36: -123199.61 | CG36: =CG35-CG37 -> -689953.63 | CH36: 17.44868602
C37: =C29 -> RSVA - Power - Sub-account - Global Adjustment | D37: 1588 | E37: =E29 -> 0 | F37: =F29 -> 0 | G37: =G29 -> 0 | H37: 0 | I37: 0 | J37: 0 | K37: 0 | L37: =L29 -> 0 | M37: =M29 -> 0 | N37: 0 | O37: 0 | P37: 0 | Q37: 0 | R37: 0 | S37: 0 | T37: 0 | U37: 0 | V37: 0 | W37: 0 | X37: 0 | Y37: 0 | Z37: 0 | AA37: 0 | AB37: 0 | AC37: 0 | AD37: 0 | AE37: 0 | AF37: 0 | AG37: 0 | AH37: 0 | AI37: 0 | AJ37: 0 | AK37: 0 | AL37: 0 | AM37: 0 | AN37: 0 | AO37: 0 | AP37: =AP29 -> 0 | AQ37: =AQ29 -> 0 | AR37: =AR29 -> 0 | AS37: 0 | AT37: 0 | AU37: 0 | AV37: 0 | AW37: 0 | AX37: 0 | AY37: 0 | AZ37: 0 | BA37: 0 | BB37: 0 | BC37: 0 | BD37: 0 | BE37: 0 | BF37: 252342 | BG37: 252342 | BH37: 0 | BI37: 0 | BJ37: 0 | BK37: -1500.985054 | BL37: -1500.985054 | BM37: 252342 | BN37: 174952.78 | BO37: 0 | BP37: 0 | BQ37: 0 | BR37: 0 | BS37: =BS29 -> 0 | BT37: 427294.78 | BU37: -1500.985054 | BV37: =BV29 -> 7451.455135 | BW37: 0 | BX37: 0 | BY37: 5950.470082 | BZ37: 252342 | CA37: -3445 | CB37: 174952.78 | CC37: 9395.470082 | CD37: 2571.805866 | CE37: 857.268622 | CF37: 187777.3246 | CG37: =CG29 -> 433244 | CH37: -1.250081703
A40: 31 | C40: Deferred Payments in Lieu of Taxes | D40: 1562 | I40: =E40+F40-G40+H40 -> 0 | N40: =J40+K40-L40+M40 -> 0 | O40: =I40 -> 0 | S40: =O40+P40-Q40+R40 -> 0 | T40: =N40 -> 0 | X40: =T40+U40-V40+W40 -> 0 | Y40: =S40 -> 0 | AC40: =Y40+Z40-AA40+AB40 -> 0 | AD40: =X40 -> 0 | AH40: =AD40+AE40-AF40+AG40 -> 0 | AI40: =AC40 -> 0 | AM40: =AI40+AJ40-AK40+AL40 -> 0 | AN40: =AH40 -> 0 | AR40: =AN40+AO40-AP40+AQ40 -> 0 | AS40: =AM40 -> 0 | AW40: =AS40+AT40-AU40+AV40 -> 0 | AX40: =AR40 -> 0 | BB40: =AX40+AY40-AZ40+BA40 -> 0 | BC40: =AW40 -> 0 | BF40: =[4]Sheet1!$G$17 -> 220202 | BG40: =BC40+BD40-BE40+SUM(BF40:BF40) -> 220202 | BH40: =BB40 -> 0 | BK40: =[4]Sheet1!$H$17+[4]Sheet1!$I$17+[4]Sheet1!$J$17 -> 81972.0598 | BL40: =BH40+BI40-BJ40+BK40 -> 81972.0598 | BM40: =BG40 -> 220202 | BT40: =BM40+BN40-BO40+SUM(BP40:BS40) -> 220202 | BU40: =BL40 -> 81972.0598 | BY40: =BU40+BV40-BW40+BX40 -> 81972.0598 | BZ40: =[4]Sheet1!$G$17 -> 220202 | CA40: =[4]Sheet1!$H$17+[4]Sheet1!$I$17+[4]Sheet1!$J$17 -> 81972.0598 | CB40: =BT40-BZ40 -> 0 | CC40: =BY40-CA40 -> 0 | CD40: =CB40*1.47% -> 0 | CE40: =CB40*1.47% -> 0 | CF40: 0 | CG40: 56420.02 | CH40: -245754.0398
CH41: 0
C42: Total of Group 1 and Account 1562 | E42: =SUM(E40,E35) -> 0 | F42: =SUM(F40,F35) -> 0 | G42: =SUM(G40,G35) -> 0 | H42: 0 | I42: 0 | J42: 0 | K42: 0 | L42: 0 | M42: 0 | N42: 0 | O42: 0 | P42: 0 | Q42: 0 | R42: 0 | S42: 0 | T42: 0 | U42: 0 | V42: 0 | W42: 0 | X42: 0 | Y42: 0 | Z42: 0 | AA42: 0 | AB42: 0 | AC42: 0 | AD42: 0 | AE42: 0 | AF42: 0 | AG42: 0 | AH42: 0 | AI42: 0 | AJ42: 0 | AK42: 0 | AL42: 0 | AM42: 0 | AN42: 0 | AO42: 0 | AP42: 0 | AQ42: 0 | AR42: 0 | AS42: 0 | AT42: 0 | AU42: 0 | AV42: 0 | AW42: 0 | AX42: 0 | AY42: 0 | AZ42: 0 | BA42: 0 | BB42: 0 | BC42: 0 | BD42: 0 | BE42: 0 | BF42: -74214 | BG42: -74214 | BH42: 0 | BI42: 0 | BJ42: 0 | BK42: 87354.9412 | BL42: 87354.9412 | BM42: -74214 | BN42: 36966.49 | BO42: 0 | BP42: 0 | BQ42: 0 | BR42: 0 | BS42: =SUM(BS40,BS35) -> 0 | BT42: -37247.51 | BU42: 87354.9412 | BV42: -4659.2 | BW42: 0 | BX42: 0 | BY42: 82695.7412 | BZ42: -74214 | CA42: 55809.0598 | CB42: 36966.49 | CC42: 26886.6814 | CD42: 543.407403 | CE42: 181.135801 | CF42: 64577.7146 | CG42: -200289.61 | CH42: -245737.8412
A44: 34 | C44: Special Purpose Charge Assessment Variance Account4 | D44: 1521 | BF44: 31793.9 | BG44: =BC44+BD44-BE44+SUM(BF44:BF44) -> 31793.9 | BH44: 0 | BI44: 260 | BL44: =BH44+BI44-BJ44+BK44 -> 260 | BM44: =BG44 -> 31793.9 | BN44: -32972.63 | BT44: =BM44+BN44-BO44+SUM(BP44:BS44) -> -1178.73 | BU44: =BL44 -> 260 | BV44: 99.47 | BY44: =BU44+BV44-BW44+BX44 -> 359.47 | BZ44: =[8]Sheet1!$G$13 -> -10266 | CA44: =[8]Sheet1!$H$13+[8]Sheet1!$I$13+[8]Sheet1!$J$13 -> -88.3034 | CB44: =BT44-BZ44 -> 9087.27 | CC44: =BY44-CA44 -> 447.7734 | CD44: -6 | CF44: 0 | CG44: -801.93 | CH44: 17.33
C46: LRAM Variance Account | D46: 1568 | BG46: =BC46+BD46-BE46+SUM(BF46:BF46) -> 0 | BL46: =BH46+BI46-BJ46+BK46 -> 0 | BM46: =BG46 -> 0 | BT46: =BM46+BN46-BO46+SUM(BP46:BS46) -> 0 | BU46: =BL46 -> 0 | BY46: =BU46+BV46-BW46+BX46 -> 0 | CB46: =BT46-BZ46 -> 0 | CC46: =BY46-CA46 -> 0 | CD46: =CB46*1.47% -> 0 | CE46: =CC46*1.47% -> 0 | CF46: =SUM(CB46:CE46) -> 0 | CH46: =CG46-SUM(BT46,BY46) -> 0
C48: Total including Accounts 1562, 1521 and 1568 | E48: =E44+E42+E46 -> 0 | F48: =F44+F42+F46 -> 0 | G48: =G44+G42+G46 -> 0 | H48: 0 | I48: 0 | J48: 0 | K48: 0 | L48: 0 | M48: 0 | N48: 0 | O48: 0 | P48: 0 | Q48: 0 | R48: 0 | S48: 0 | T48: 0 | U48: 0 | V48: 0 | W48: 0 | X48: 0 | Y48: 0 | Z48: 0 | AA48: 0 | AB48: 0 | AC48: 0 | AD48: 0 | AE48: 0 | AF48: 0 | AG48: 0 | AH48: 0 | AI48: 0 | AJ48: 0 | AK48: 0 | AL48: 0 | AM48: 0 | AN48: 0 | AO48: 0 | AP48: 0 | AQ48: 0 | AR48: 0 | AS48: 0 | AT48: 0 | AU48: 0 | AV48: 0 | AW48: 0 | AX48: 0 | AY48: 0 | AZ48: 0 | BA48: 0 | BB48: 0 | BC48: 0 | BD48: 0 | BE48: 0 | BF48: -42420.1 | BG48: -42420.1 | BH48: 0 | BI48: 260 | BJ48: 0 | BK48: 87354.9412 | BL48: 87614.9412 | BM48: -42420.1 | BN48: 3993.86 | BO48: 0 | BP48: 0 | BQ48: 0 | BR48: 0 | BS48: =BS44+BS42+BS46 -> 0 | BT48: -38426.24 | BU48: 87614.9412 | BV48: -4559.73 | BW48: 0 | BX48: 0 | BY48: 83055.2112 | BZ48: -84480 | CA48: 55720.7564 | CB48: 46053.76 | CC48: 27334.4548 | CD48: 537.407403 | CE48: 181.135801 | CF48: 64577.7146 | CG48: -201091.54 | CH48: -245720.5112
C51: For all Board-Approved dispositions, please ensure that the disposition amount has the same sign (e.g: debit balances are to have a positive figure and credit balance are to have a negative figure) as per the related Board decision.
B54: 1 | C54: Please provide explanations for the nature of the adjustments. If the adjustment relates to previously Board Approved disposed balances, please provide amounts for adjustments and include supporting documentations.
B55: 2 | C55: For RSVA accounts only, report the net variance to the account during the year. For all other accounts, record the transactions during the year.
B56: 3 | C56: If the LDC’s 2013 rate year begins January 1, 2013, the projected interest is recorded from January 1, 2012 to December 31, 2012 on the December 31, 2011 balance adjusted for the disposed balances approved by the Board in the 2012 rate decision. If the LDC’s 2013 rate year begins May 1, 2013 the projected interest is recorded from January 1, 2012 to April 30, 2013 on the December 31, 2011 balance adjusted for the disposed balances approved by the Board in the 2012 rate decision.
B57: 4 | C57: Applicants that did not have the balance in Account 1521 cleared by the Board in the 2012 rate proceedings are expected to file to dispose of Account 1521 in the 2013 rate proceedings. No Account 1521 balance is to be filed for clearance in the 2013 rate proceedings for those distributors that had account 1521 cleared by the Board in the 2012 rate proceedings. In accordance with section 8 of the Special Purpose Charge (“SPC”) Regulation, Ontario Regulation 66/10, distributors were required to apply to the Board no later than April 15, 2012 for an order authorizing the distributor to clear the balance in Account 1521. As per the Board’s April 23, 2010 letter, the Board stated that it expected that requests for disposition of the balance in Account 1521 were to be addressed as part of the proceedings to set rates for the 2012 rate year, except in cases where this approach would result in non-compliance with the timeline set out in section 8 of the SPC Regulation.
B58: 5 | C58: Include Account 1595 as part of Group 1 accounts (lines 31, 32 and 33) for review and disposition if the recovery (or refund) period has been completed. If the recovery (or refund) period has not been completed, do not include the respective balance in Account 1595 for disposition at this time.

Sheet 6. Billing Det. for Def-Var
A13: In the green shaded cells, enter the most recent Board Approved volumetric forecast. If there is a material difference between the latest Board-approved volumetric forecast and the most recent 12-month actual volumetric data, use the most recent 12-month actual data. Do not enter data for the MicroFit class.
E15: Billed kWh for Non-RPP Customers | F15: Estimated kW for Non-RPP Customers | G15: Distribution Revenue 1 | H15: 1590 Recovery Share Proportion* | I15: 1595 Recovery Share Proportion (2008) 2 | J15: 1595 Recovery Share Proportion (2009) 2 | K15: 1595 Recovery Share Proportion (2010) 2 | L15: 1568 LRAM Variance Account Class Allocation ($ amounts)
A16: Rate Class | B16: Unit | C16: Metered kWh | D16: Metered kW
A17: Residential | B17: $/kWh | C17: 85739256 | E17: 15872031 | F17: =IF(ISERROR(D17/C17*E17), 0, D17/C17*E17) -> 0 | G17: 3154030
A18: General Service Less Than 50 kW | B18: $/kWh | C18: 38644867 | E18: 6146063 | F18: 0 | G18: 812424
A19: General Service 50 to 4,999 kW | B19: $/kW | C19: 123337329 | D19: 294391 | E19: 118258039 | F19: 282267.3609 | G19: 838255
A20: Unmetered Scattered Load | B20: $/kWh | C20: 374473 | F20: 0 | G20: 14621
A21: Sentinel Lighting | B21: $/kW | C21: 129053 | D21: 357 | E21: 9001 | F21: 24.89951415 | G21: 6384
A22: Street Lighting | B22: $/kW | C22: 1787017 | D22: 5069 | E22: 1682166 | F22: 4771.582729 | G22: 47858
A23: MicroFit
B25: Total | C25: =SUM(C17:C23) -> 250011995 | D25: =SUM(D17:D23) -> 299817 | E25: 141967300 | F25: 287063.8432 | G25: 4873572 | H25: 0 | I25: 0 | J25: 0 | K25: 0 | L25: 0
K26: Balance as per Sheet 5 | L26: ='5. 2013 Continuity Schedule'!CF46 -> 0
K27: Variance | L27: =L25-L26 -> 0
A29: Threshold Test
A30: Total Claim (including Account 1521, 1562 and 1568) | B30: ='5. 2013 Continuity Schedule'!CF48 -> 64577.7146
A31: Total Claim for Threshold Test (All Group 1 Accounts) | B31: ='5. 2013 Continuity Schedule'!CF35 -> 64577.7146
A32: Threshold Test (Total claim per kWh) 3 | B32: =IF(ISERROR(B31/C25), 0, B31/C25) -> 0.0002582984652 | D32: =IF(AND(B32>-0.001,B32<0.001),"Claim does not meet the threshold test. If data has been entered on Sheet 5 for Accounts 1521 and 1562, the model will only dispose of Accounts 1521 and 1562.","") -> Claim does not meet the threshold test. If data has been entered on Sheet 5 for Accounts 1521 and 1562, the model will only dispose of Accounts 1521 and 1562.
A36: 1 For Account 1562, the allocation to customer classes should be performed on the basis of the test year distribution revenue allocation to customer classes found in the Applicant’s Cost of Service application that was most recently approved at the time of disposition of the 1562 account balances
A38: 2 Residual Account balance to be allocated to rate classes in proportion to the recovery share as established when rate riders were implemented.
A39: 3 The Threshold Test does not include the amount in 1521, 1562 nor 1568.

Sheet 6. hidden (hidden)
E1: Billed kWh for Non-RPP Customers | F1: Estimated kW for Non-RPP Customers | G1: Distribution Revenue 1 | H1: 1590 Recovery Share Proportion* | I1: 1595 Recovery Share Proportion (2008) 2 | J1: 1595 Recovery Share Proportion (2009) 2 | K1: 1595 Recovery Share Proportion (2010) 2 | L1: 1568 LRAM Variance Account Class Allocation
A2: Rate Class | B2: Unit | C2: Metered kWh | D2: Metered kW
A3: Residential | B3: $/kWh | C3: 85739256 | D3: 0 | E3: 15872031 | G3: 3154030 | H3: 0 | I3: 0 | J3: 0 | K3: 0 | L3: 0
A4: General Service Less Than 50 kW | B4: $/kWh | C4: 38644867 | D4: 0 | E4: 6146063 | G4: 812424 | H4: 0 | I4: 0 | J4: 0 | K4: 0 | L4: 0
A5: General Service 50 to 4,999 kW | B5: $/kW | C5: 123337329 | D5: 294391 | E5: 118258039 | G5: 838255 | H5: 0 | I5: 0 | J5: 0 | K5: 0 | L5: 0
A6: Unmetered Scattered Load | B6: $/kWh | C6: 374473 | D6: 0 | E6: 0 | G6: 14621 | H6: 0 | I6: 0 | J6: 0 | K6: 0 | L6: 0
A7: Sentinel Lighting | B7: $/kW | C7: 129053 | D7: 357 | E7: 9001 | G7: 6384 | H7: 0 | I7: 0 | J7: 0 | K7: 0 | L7: 0
A8: Street Lighting | B8: $/kW | C8: 1787017 | D8: 5069 | E8: 1682166 | G8: 47858 | H8: 0 | I8: 0 | J8: 0 | K8: 0 | L8: 0
A9: MicroFit | B9: 0 | C9: 0 | D9: 0 | E9: 0 | G9: 0 | H9: 0 | I9: 0 | J9: 0 | K9: 0 | L9: 0

Sheet 7. Allocating Def-Var Balances
A13: No input required. This workshseet allocates the deferral/variance account balances (Group 1, 1521, 1588 GA, 1562 and 1568) to the appropriate classes as per the EDDVAR Report dated July 31, 2009
A15: Allocation of Group 1 Accounts (including Accounts 1521, 1562, 1568)
C16: % of Total kWh | D16: % of Total non-RPP kWh | E16: % of Total Distribution Revenue | M16: 1595 (2008) | N16: 1595 (2009) | O16: 1595 (2010) | P16: 1521 | Q16: 1562 | R16: 1568
A17: Rate Class | F17: 1550 | G17: 1580 | H17: 1584 | I17: 1586 | J17: 1588* | K17: 1588 GA | L17: 1590
A19: Residential | C19: =VLOOKUP(A19, '6. Billing Det. for Def-Var'!#REF!, 3,0)/'6. Billing Det. for Def-Var'!#REF! ->  | D19: =VLOOKUP(A19, '6. Billing Det. for Def-Var'!#REF!, 5,0)/'6. Billing Det. for Def-Var'!#REF! ->  | E19: =VLOOKUP(A19, '6. Billing Det. for Def-Var'!#REF!, 7,0)/'6. Billing Det. for Def-Var'!#REF! ->  | F19: 0 | G19: 0 | H19: 0 | I19: 0 | J19: 0 | K19: 0 | L19: 0 | M19: 0 | N19: 0 | O19: 0 | P19: =C19* '5. 2013 Continuity Schedule'!CF44 ->  | Q19: =E19* '5. 2013 Continuity Schedule'!CF40 ->  | R19: ='6. Billing Det. for Def-Var'!#REF! -> 
A20: General Service Less Than 50 kW | C20: =VLOOKUP(A20, '6. Billing Det. for Def-Var'!#REF!, 3,0)/'6. Billing Det. for Def-Var'!#REF! ->  | D20: =VLOOKUP(A20, '6. Billing Det. for Def-Var'!#REF!, 5,0)/'6. Billing Det. for Def-Var'!#REF! ->  | E20: =VLOOKUP(A20, '6. Billing Det. for Def-Var'!#REF!, 7,0)/'6. Billing Det. for Def-Var'!#REF! ->  | F20: 0 | G20: 0 | H20: 0 | I20: 0 | J20: 0 | K20: 0 | L20: 0 | M20: 0 | N20: 0 | O20: 0 | P20: =C20* '5. 2013 Continuity Schedule'!CF44 ->  | Q20: =E20* '5. 2013 Continuity Schedule'!CF40 ->  | R20: ='6. Billing Det. for Def-Var'!#REF! -> 
A21: General Service 50 to 4,999 kW | C21: =VLOOKUP(A21, '6. Billing Det. for Def-Var'!#REF!, 3,0)/'6. Billing Det. for Def-Var'!#REF! ->  | D21: =VLOOKUP(A21, '6. Billing Det. for Def-Var'!#REF!, 5,0)/'6. Billing Det. for Def-Var'!#REF! ->  | E21: =VLOOKUP(A21, '6. Billing Det. for Def-Var'!#REF!, 7,0)/'6. Billing Det. for Def-Var'!#REF! ->  | F21: 0 | G21: 0 | H21: 0 | I21: 0 | J21: 0 | K21: 0 | L21: 0 | M21: 0 | N21: 0 | O21: 0 | P21: =C21* '5. 2013 Continuity Schedule'!CF44 ->  | Q21: =E21* '5. 2013 Continuity Schedule'!CF40 ->  | R21: ='6. Billing Det. for Def-Var'!#REF! -> 
A22: Unmetered Scattered Load | C22: =VLOOKUP(A22, '6. Billing Det. for Def-Var'!#REF!, 3,0)/'6. Billing Det. for Def-Var'!#REF! ->  | D22: =VLOOKUP(A22, '6. Billing Det. for Def-Var'!#REF!, 5,0)/'6. Billing Det. for Def-Var'!#REF! ->  | E22: =VLOOKUP(A22, '6. Billing Det. for Def-Var'!#REF!, 7,0)/'6. Billing Det. for Def-Var'!#REF! ->  | F22: 0 | G22: 0 | H22: 0 | I22: 0 | J22: 0 | K22: 0 | L22: 0 | M22: 0 | N22: 0 | O22: 0 | P22: =C22* '5. 2013 Continuity Schedule'!CF44 ->  | Q22: =E22* '5. 2013 Continuity Schedule'!CF40 ->  | R22: ='6. Billing Det. for Def-Var'!#REF! -> 
A23: Sentinel Lighting | C23: =VLOOKUP(A23, '6. Billing Det. for Def-Var'!#REF!, 3,0)/'6. Billing Det. for Def-Var'!#REF! ->  | D23: =VLOOKUP(A23, '6. Billing Det. for Def-Var'!#REF!, 5,0)/'6. Billing Det. for Def-Var'!#REF! ->  | E23: =VLOOKUP(A23, '6. Billing Det. for Def-Var'!#REF!, 7,0)/'6. Billing Det. for Def-Var'!#REF! ->  | F23: 0 | G23: 0 | H23: 0 | I23: 0 | J23: 0 | K23: 0 | L23: 0 | M23: 0 | N23: 0 | O23: 0 | P23: =C23* '5. 2013 Continuity Schedule'!CF44 ->  | Q23: =E23* '5. 2013 Continuity Schedule'!CF40 ->  | R23: ='6. Billing Det. for Def-Var'!#REF! -> 
A24: Street Lighting | C24: =VLOOKUP(A24, '6. Billing Det. for Def-Var'!#REF!, 3,0)/'6. Billing Det. for Def-Var'!#REF! ->  | D24: =VLOOKUP(A24, '6. Billing Det. for Def-Var'!#REF!, 5,0)/'6. Billing Det. for Def-Var'!#REF! ->  | E24: =VLOOKUP(A24, '6. Billing Det. for Def-Var'!#REF!, 7,0)/'6. Billing Det. for Def-Var'!#REF! ->  | F24: 0 | G24: 0 | H24: 0 | I24: 0 | J24: 0 | K24: 0 | L24: 0 | M24: 0 | N24: 0 | O24: 0 | P24: =C24* '5. 2013 Continuity Schedule'!CF44 ->  | Q24: =E24* '5. 2013 Continuity Schedule'!CF40 ->  | R24: ='6. Billing Det. for Def-Var'!#REF! -> 
A25: MicroFit | C25: 0 | D25: 0 | E25: 0 | F25: 0 | G25: 0 | H25: 0 | I25: 0 | J25: 0 | K25: 0 | L25: 0 | M25: 0 | N25: 0 | O25: 0 | P25: =C25* '5. 2013 Continuity Schedule'!CF44 -> 0 | Q25: =E25* '5. 2013 Continuity Schedule'!CF40 -> 0 | R25: ='6. Billing Det. for Def-Var'!#REF! -> 
A27: Total | C27: =SUM(C19:C25) ->  | F27: 0 | G27: 0 | H27: 0 | I27: 0 | J27: 0 | K27: 0 | L27: 0 | M27: 0 | N27: 0 | O27: 0
A30: * RSVA - Power (Excluding Global Adjustment)

Sheet 8. Calculation of Def-Var RR
A12: Input required at cell C15 only. This workshseet calculates rate riders related to the Deferral/Variance Account Disposition (if applicable) and associated rate riders for the global adjustment sub-account. Rate Riders will not be generated for the MicroFit class.
A15: Please indicate the Rate Rider Recovery Period (in years) | C15: 1
E17: Balance of Accounts Allocated by kWh/kW (RPP) or Distribution Revenue | F17: Deferral/Variance Account Rate Rider | G17: Allocation of Balance in Account 1588 Global Adjustment Sub-Account | H17: Billed kWh or Estimated kW for Non-RPP Customers | I17: Global Adjustment Rate Rider
A18: Rate Class | B18: Unit | C18: Billed kWh | D18: Billed kW or kVA
A20: Residential | B20: $/kWh | C20: 85739256 | E20: =SUM('7. Allocating Def-Var Balances'!F19:J19)+SUM('7. Allocating Def-Var Balances'!L19:R19) ->  | F20: 0 | G20: 0 | H20: 15872031 | I20: 0
A21: General Service Less Than 50 kW | B21: $/kWh | C21: 38644867 | E21: =SUM('7. Allocating Def-Var Balances'!F20:J20)+SUM('7. Allocating Def-Var Balances'!L20:R20) ->  | F21: 0 | G21: 0 | H21: 6146063 | I21: 0
A22: General Service 50 to 4,999 kW | B22: $/kW | C22: 123337329 | D22: 294391 | E22: =SUM('7. Allocating Def-Var Balances'!F21:J21)+SUM('7. Allocating Def-Var Balances'!L21:R21) ->  | F22: 0 | G22: 0 | H22: 282267.3609 | I22: 0
A23: Unmetered Scattered Load | B23: $/kWh | C23: 374473 | E23: =SUM('7. Allocating Def-Var Balances'!F22:J22)+SUM('7. Allocating Def-Var Balances'!L22:R22) ->  | F23: 0 | G23: 0 | I23: 0
A24: Sentinel Lighting | B24: $/kW | C24: 129053 | D24: 357 | E24: =SUM('7. Allocating Def-Var Balances'!F23:J23)+SUM('7. Allocating Def-Var Balances'!L23:R23) ->  | F24: 0 | G24: 0 | H24: 24.89951415 | I24: 0
A25: Street Lighting | B25: $/kW | C25: 1787017 | D25: 5069 | E25: =SUM('7. Allocating Def-Var Balances'!F24:J24)+SUM('7. Allocating Def-Var Balances'!L24:R24) ->  | F25: 0 | G25: 0 | H25: 4771.582729 | I25: 0
A26: MicroFit
A27: Total | C27: =SUM(C20:C26) -> 250011995 | D27: =SUM(D20:D26) -> 299817 | E27: =SUM(E20:E26) ->  | G27: =SUM(G20:G26) -> 0 | H27: =SUM(H20:H26) -> 22305157.84

Sheet 9. Rev2Cost_GDPIPI
Z1: 0
A12: If applicable, please enter any adjustments related to the revenue to cost ratio model into columns C and E. The Price Escalator has been set at the 2012 values and will be updated by Board staff. The Stretch Factor Value will also be updated by Board staff.
A15: Price Escalator | B15: 0.016 | C15: Choose Stretch Factor Group | E15: II
A16: Productivity Factor | B16: 0.0072 | C16: Associated Stretch Factor Value | E16: =IF(ISBLANK(E15)=TRUE, "", IF(E15="I", 0.002, IF(E15="II", 0.004, 0.006))) -> 0.004
A17: Price Cap Index | B17: =B15-B16-E16 -> 0.0048
B19: Current MFC | C19: MFC Adjustment from R/C Model | D19: Current Volumetric Charge | E19: DVR Adjustment from R/C Model | F19: Price Cap Index to be Applied to MFC and DVR | G19: Proposed MFC | H19: Proposed Volumetric Charge
A20: Rate Class
A22: Residential | B22: 16.26 | C22: -0.08 | D22: 0.014 | E22: -0.0001 | F22: =$B$17 -> 0.0048 | G22: =ROUND(SUM(B22,C22)*(1+F22),2) -> 16.26 | H22: =ROUND(SUM(D22,E22)*(1+F22),4) -> 0.014
A23: General Service Less Than 50 kW | B23: 33.11 | D23: 0.0101 | F23: 0.0048 | G23: 33.27 | H23: 0.0101
A24: General Service 50 to 4,999 kW | B24: 185.34 | D24: 2.1822 | F24: 0.0048 | G24: 186.23 | H24: 2.1927
A25: Unmetered Scattered Load | B25: 6.31 | D25: 0.0089 | F25: 0.0048 | G25: 6.34 | H25: 0.0089
A26: Sentinel Lighting | B26: 2.81 | C26: 0.49 | D26: 10.9656 | E26: 1.9194 | F26: 0.0048 | G26: 3.32 | H26: 12.9468
A27: Street Lighting | B27: 1.26 | C27: 0.24 | D27: 6.9657 | E27: 1.3505 | F27: 0.0048 | G27: 1.51 | H27: 8.3561
A28: MicroFit | B28: 5.25 | G28: 5.25

Sheet 9. hidden (hidden)
A1: Rate Class | B1: MFC Adjustment from R/C Model | C1: DVR Adjustment from R/C Model
A2: Residential | B2: -0.08 | C2: -0.0001
A3: General Service Less Than 50 kW | B3: 0 | C3: 0
A4: General Service 50 to 4,999 kW | B4: 0 | C4: 0
A5: Unmetered Scattered Load | B5: 0 | C5: 0
A6: Sentinel Lighting | B6: 0.49 | C6: 1.9194
A7: Street Lighting | B7: 0.24 | C7: 1.3505
A8: MicroFit | B8: 0 | C8: 0

Sheet 10. Other Charges & LF
A11: Please enter the following charges as found on your most recent Board-Approved Tariff Schedule. The standard Allowance rates have been included as default entries. If you have different rates, please make the appropriate corrections in the applicable cells below. As well, please enter the current Specific Service Charges below. The standard Retail Service Charges have been entered below. If you have different rates, please make the appropriate corrections in columns A, C or D as applicable (cells are unlocked).
C13: UNIT | D13: CURRENT
A15: ALLOWANCES
A17: Transformer Allowance for Ownership - per kW of billing demand/month | C17: $/kW | D17: -0.6
A20: Primary Metering Allowance for transformer losses – applied to measured demand and energy | C20: % | D20: -1
A22: SPECIFIC SERVICE CHARGES
A24: APPLICATION
A26: The application of these rates and charges shall be in accordance with the Licence of the Distributor and any Code or
A27: Order of the Board, and amendments thereto as approved by the Board, which may be applicable to the
A28: administration of this schedule
A30: No charges to meet the costs of any work or service done or furnished for the purpose of the distribution of electricity
A31: shall be made except as permitted by this schedule, unless required by the Distributor’s Licence or a Code or Order
A32: of the Board, and amendments thereto as approved by the Board, or as specified herein.
A34: It should be noted that this schedule does not list any charges, assessments, or credits that are required by law to be
A35: invoiced by a distributor and that are not subject to Board approval, such as the Debt Retirement Charge, charges for
A36: the Ministry of Energy Conservation and Renewable Energy Program, the Global Adjustment, the Ontario Clean
A37: Energy Benefit and the HST.
A39: Customer Administration
A41: Arrears certificate | C41: $ | D41: 15
A42: Pulling Post Dated Cheques | C42: $ | D42: 15
A43: Notification charge | C43: $ | D43: 15
A44: Account History | C44: $ | D44: 15
A45: Credit Reference/credit check (plus credit agency costs) | C45: $ | D45: 15
A46: Returned cheque charge (plus bank charges) | C46: $ | D46: 15
A47: Charge to certify cheque | C47: $ | D47: 15
A48: Account set up charge/change of occupancy charge (plus credit agency costs if applicable – Residential) | C48: $ | D48: 30
A49: Meter dispute charge plus Measurement Canada fees (if meter found correct) | C49: $ | D49: 30
A50: Special meter reads | C50: $ | D50: 30
A77: Non-Payment of Account
A79: Late Payment – per month | C79: % | D79: 1.5
A80: Late Payment – per annum | C80: % | D80: 19.56
A81: Collection of account charge – no disconnection | C81: $ | D81: 30
A82: Disconnect/Reconnect at meter – during regular hours | C82: $ | D82: 65
A83: Disconnect/Reconnect at meter – after regular hours | C83: $ | D83: 185
A84: Disconnect/Reconnect at pole – during regular hours | C84: $ | D84: 185
A85: Disconnect/Reconnect Charge – At Pole – After Hours | C85: $ | D85: 415
A86: Temporary Service – Install & remove – overhead – no transformer | C86: $ | D86: 500
A87: Temporary Service Install & Remove – Underground – No Transformer | C87: $ | D87: 300
A88: Temporary service installation and removal – overhead – with transformer | C88: $ | D88: 1000
A89: Specific Charge for Access to the Power Poles - $/pole/year | C89: $ | D89: 22.35
A107: RETAIL SERVICE CHARGES (if applicable)
A109: The application of these rates and charges shall be in accordance with the Licence of the Distributor and any Code or
A110: Order of the Board, and amendments thereto as approved by the Board, which may be applicable to the
A111: administration of this schedule.
A113: No rates and charges for the distribution of electricity and charges to meet the costs of any work or service done or
A114: furnished for the purpose of the distribution of electricity shall be made except as permitted by this schedule, unless
A115: required by the Distributor’s Licence or a Code or Order of the Board, and amendments thereto as approved by the
A116: Board, or as specified herein.
A118: Unless specifically noted, this schedule does not contain any charges for the electricity commodity, be it under the
A119: Regulated Price Plan, a contract with a retailer or the wholesale market price, as applicable
A121: It should be noted that this schedule does not list any charges, assessments, or credits that are required by law to be
A122: invoiced by a distributor and that are not subject to Board approval, such as the Debt Retirement Charge, charges for
A123: the Ministry of Energy Conservation and Renewable Energy Program, the Global Adjustment, the Ontario Clean
A124: Energy Benefit and the HST.
A126: Retail Service Charges refer to services provided by a distributor to retailers or customers related
A127: to the supply of competitive electricity
A130: One-time charge, per retailer, to establish the service agreement between the distributor and the retailer | C130: $ | D130: 100
A131: Monthly Fixed Charge, per retailer | C131: $ | D131: 20
A132: Monthly Variable Charge, per customer, per retailer | C132: $/cust. | D132: 0.5
A133: Distributor-consolidated billing charge, per customer, per retailer | C133: $/cust. | D133: 0.3
A134: Retailer-consolidated billing credit, per customer, per retailer | C134: $/cust. | D134: -0.3
A135: Service Transaction Requests (STR)
A136: Request fee, per request, applied to the requesting party | C136: $ | D136: 0.25
A137: Processing fee, per request, applied to the requesting party | C137: $ | D137: 0.5
A138: Request for customer information as outlined in Section 10.6.3 and Chapter 11 of the Retail
A139: Settlement Code directly to retailers and customers, if not delivered electronically through the
A140: Electronic Business Transaction (EBT) system, applied to the requesting party
A141: Up to twice a year | C141: $ | D141: no charge
A142: More than twice a year, per request (plus incremental delivery costs) | C142: $ | D142: 2
A144: LOSS FACTORS
A146: If the distributor is not capable of prorating changed loss factors jointly with distribution rates, the revised loss factors
A147: will be implemented upon the first subsequent billing for each billing cycle.
A149: Total Loss Factor – Secondary Metered Customer < 5,000 kW | D149: 1.0468 | H149: TLF_Secondary_LT_5000kW
A150: Total Loss Factor – Primary Metered Customer < 5,000 kW | D150: 1.0363 | H150: TLF_Primary_LT_5000kW

Sheet 11. Proposed Rates
Y1: 0 | Z1: 3 | AA1: ≥
Z2: February
Z3: March
Z4: April
Z5: May
Z6: June
Z7: July
Z8: August
Z9: September
Z10: October
Z11: November
A12: Below is a listing of the proposed Monthly Fixed Charges, proposed Distribution Volumetric Rates, proposed Deferral and Variance account Rate Riders and all unexpired volumetric rates that were entered on Sheet 4. In the green cells (column A) below, please enter any additional rates being proposed (eg: LRAM/SSM, Tax Adjustments, etc). Please ensure that the word "Rider" or "Adder" is included in the description (as applicable). Note: All rates with expired effective dates have been removed. As well, the Current RTSR-Network and RTSR-Connection rate descriptions entered on Sheet 4 can be found below. The associated rates have been removed from this sheet, giving the applicant the opportunity to enter updated rates (from Sheet 13 in the Board-Approved RTSR model into the cells in column I. | Z12: December
A20: RESIDENTIAL SERVICE CLASSIFICATION
A21: MONTHLY RATES AND CHARGES - Delivery Component
A22: Service Charge | H22: $ | I22: 16.26 | K22: 1_P_MSC
A23: Distribution Volumetric Rate | H23: $/kWh | I23: 0.014 | K23: 1_P_VC
A24: Low Voltage Service Rate | H24: $/kWh | I24: 0.0011 | K24: 1_P_LVrate
A25: Rate Rider for Deferral/Variance Account Disposition (2010) – Effective until April 30, 2014 | H25: $/kWh | I25: -0.0013 | K25: 1_P_VC_Rate_Rider_kWh_1
A26: Retail Transmission Rate - Network Service Rate | H26: $/kWh | I26: 0.0065 | K26: 1_P_RTSR_Network
A27: Retail Transmission Rate - Line and Transformation Connection Service Rate | H27: $/kWh | I27: 0.0034 | K27: 1_P_RTSR_Connection
A28: Rate Rider for Smart Meter Incremental Revenue Requirement – in effect until the effective date of the next cost of service-based rate order | H28: $ | I28: 2.84 | K28: 1_P_MSC_Rate_Rider_1
A29: Rate Rider for Tax Change (2013) - effective until April 30, 2014 | H29: $/kWh | I29: -0.0003 | K29: 1_P_VC_Rate_Rider_kWh_2
A30: Rate Rider for Smart Metering Entity Charge - effective until October 31, 2018 | H30: $ | I30: 0.79 | K30: 1_P_MSC_Rate_Rider_2
A48: MONTHLY RATES AND CHARGES - Regulatory Component
A49: Wholesale Market Service Rate | H49: $/kWh | I49: 0.0044 | K49: 1_P_WMSR
A50: Rural Rate Protection Charge | H50: $/kWh | I50: 0.0012 | K50: 1_P_RRPC
A51: Standard Supply Service - Administrative Charge (if applicable) | H51: $ | I51: 0.25 | K51: 1_P_SSS
A56: GENERAL SERVICE LESS THAN 50 KW SERVICE CLASSIFICATION
A57: MONTHLY RATES AND CHARGES - Delivery Component
A58: Service Charge | H58: $ | I58: 33.27 | K58: 2_P_MSC
A59: Distribution Volumetric Rate | H59: $/kWh | I59: 0.0101 | K59: 2_P_VC
A60: Low Voltage Service Rate | H60: $/kWh | I60: 0.001 | K60: 2_P_LVrate
A61: Rate Rider for Deferral/Variance Account Disposition (2010) – Effective until April 30, 2014 | H61: $/kWh | I61: -0.0013 | K61: 2_P_VC_Rate_Rider_kWh_1
A62: Retail Transmission Rate - Network Service Rate | H62: $/kWh | I62: 0.006 | K62: 2_P_RTSR_Network
A63: Retail Transmission Rate - Line and Transformation Connection Service Rate | H63: $/kWh | I63: 0.0031 | K63: 2_P_RTSR_Connection
A64: Rate Rider for Smart Meter Incremental Revenue Requirement – in effect until the effective date of the next cost of service-based rate order | H64: $ | I64: 7.02 | K64: 2_P_MSC_Rate_Rider_1
A65: Rate Rider for Tax Change (2013) - effective until April 30, 2014 | H65: $/kWh | I65: -0.0002 | K65: 2_P_VC_Rate_Rider_kWh_2
A66: Rate Rider for Smart Metering Entity Charge - effective until October 31, 2018 | H66: $ | I66: 0.79 | K66: 2_P_MSC_Rate_Rider_2
A84: MONTHLY RATES AND CHARGES - Regulatory Component
A85: Wholesale Market Service Rate | H85: $/kWh | I85: 0.0044 | K85: 2_P_WMSR
A86: Rural Rate Protection Charge | H86: $/kWh | I86: 0.0012 | K86: 2_P_RRPC
A87: Standard Supply Service - Administrative Charge (if applicable) | H87: $ | I87: 0.25 | K87: 2_P_SSS
A92: GENERAL SERVICE 50 TO 4,999 KW SERVICE CLASSIFICATION
A93: MONTHLY RATES AND CHARGES - Delivery Component
A94: Service Charge | H94: $ | I94: 186.23 | K94: 3_P_MSC
A95: Distribution Volumetric Rate | H95: $/kW | I95: 2.1927 | K95: 3_P_VC
A96: Low Voltage Service Rate | H96: $/kW | I96: 0.3999 | K96: 3_P_LVrate
A97: Rate Rider for Deferral/Variance Account Disposition (2010) – Effective until April 30, 2014 | H97: $/kW | I97: -0.5054 | K97: 3_P_VC_Rate_Rider_kW_1
A98: Retail Transmission Rate - Network Service Rate | H98: $/kW | I98: 2.4552 | K98: 3_P_RTSR_Network
A99: Retail Transmission Rate - Line and Transformation Connection Service Rate | H99: $/kW | I99: 1.2284 | K99: 3_P_RTSR_Connection
A100: Rate Rider for Tax Change (2013) - effective until April 30, 2014 | H100: $/kW | I100: -0.0288 | K100: 3_P_VC_Rate_Rider_kW_2
A120: MONTHLY RATES AND CHARGES - Regulatory Component
A121: Wholesale Market Service Rate | H121: $/kWh | I121: 0.0044 | K121: 3_P_WMSR
A122: Rural Rate Protection Charge | H122: $/kWh | I122: 0.0012 | K122: 3_P_RRPC
A123: Standard Supply Service - Administrative Charge (if applicable) | H123: $ | I123: 0.25 | K123: 3_P_SSS
A128: UNMETERED SCATTERED LOAD SERVICE CLASSIFICATION
A129: MONTHLY RATES AND CHARGES - Delivery Component
A130: Service Charge (per connection) | H130: $ | I130: 6.34 | K130: 4_P_MSC
A131: Distribution Volumetric Rate | H131: $/kWh | I131: 0.0089 | K131: 4_P_VC
A132: Low Voltage Service Charge | H132: $/kWh | I132: 0.001 | K132: 4_P_LVrate
A133: Rate Rider for Deferral/Variance Account Disposition (2010) – Effective until April 30, 2014 | H133: $/kWh | I133: -0.001 | K133: 4_P_VC_Rate_Rider_kWh_1
A134: Retail Transmission Rate - Network Service Rate | H134: $/kWh | I134: 0.006 | K134: 4_P_RTSR_Network
A135: Retail Transmission Rate - Line and Transformation Connection Service Rate | H135: $/kWh | I135: 0.0031 | K135: 4_P_RTSR_Connection
A136: Rate Rider for Tax Change (2013) - effective until April 30, 2014 | H136: $/kWh | I136: -0.0004 | K136: 4_P_VC_Rate_Rider_kWh_2
A156: MONTHLY RATES AND CHARGES - Regulatory Component
A157: Wholesale Market Service Rate | H157: $/kWh | I157: 0.0044 | K157: 4_P_WMSR
A158: Rural Rate Protection Charge | H158: $/kWh | I158: 0.0012 | K158: 4_P_RRPC
A159: Standard Supply Service - Administrative Charge (if applicable) | H159: $ | I159: 0.25 | K159: 4_P_SSS
A164: SENTINEL LIGHTING SERVICE CLASSIFICATION
A165: MONTHLY RATES AND CHARGES - Delivery Component
A166: Service Charge (per connection) | H166: $ | I166: 3.32 | K166: 5_P_MSC
A167: Distribution Volumetric Rate | H167: $/kW | I167: 12.9468 | K167: 5_P_VC
A168: Low Voltage Service Charge | H168: $/kW | I168: 0.3156 | K168: 5_P_LVrate
A169: Rate Rider for Deferral/Variance Account Disposition (2010) – Effective until April 30, 2014 | H169: $/kW | I169: -0.4833 | K169: 5_P_VC_Rate_Rider_kW_1
A170: Retail Transmission Rate - Network Service Rate | H170: $/kW | I170: 1.8609 | K170: 5_P_RTSR_Network
A171: Retail Transmission Rate - Line and Transformation Connection Service Rate | H171: $/kW | I171: 0.9696 | K171: 5_P_RTSR_Connection
A172: Rate Rider for Tax Change (2013) - effective until April 30, 2014 | H172: $/kW | I172: -0.2444 | K172: 5_P_VC_Rate_Rider_kW_2
A192: MONTHLY RATES AND CHARGES - Regulatory Component
A193: Wholesale Market Service Rate | H193: $/kWh | I193: 0.0044 | K193: 5_P_WMSR
A194: Rural Rate Protection Charge | H194: $/kWh | I194: 0.0012 | K194: 5_P_RRPC
A195: Standard Supply Service - Administrative Charge (if applicable) | H195: $ | I195: 0.25 | K195: 5_P_SSS
A200: STREET LIGHTING SERVICE CLASSIFICATION
A201: MONTHLY RATES AND CHARGES - Delivery Component
A202: Service Charge (per connection) | H202: $ | I202: 1.51 | K202: 6_P_MSC
A203: Distribution Volumetric Rate | H203: $/kW | I203: 8.3561 | K203: 6_P_VC
A204: Low Voltage Service Charge | H204: $/kW | I204: 0.3091 | K204: 6_P_LVrate
A205: Rate Rider for Deferral/Variance Account Disposition (2010) – Effective until April 30, 2014 | H205: $/kW | I205: -0.4492 | K205: 6_P_VC_Rate_Rider_kW_1
A206: Rate Rider for Deferral/Variance Account Disposition (2012) – Effective until April 30, 2014 | H206: $/kW | I206: -0.2056 | K206: 6_P_VC_Rate_Rider_kW_2
A207: Rate Rider for Global Adjustment Sub-Account Disposition (2012) – Effective until April 30, 2014 Applicable only for Non-RPP Customers | H207: $/kW | I207: 0.6088 | K207: 6_P_VC_GA_Rate_Rider_kW_1
A208: Retail Transmission Rate - Network Service Rate | H208: $/kW | I208: 1.8516 | K208: 6_P_RTSR_Network
A209: Retail Transmission Rate - Line and Transformation Connection Service Rate | H209: $/kW | I209: 0.9495 | K209: 6_P_RTSR_Connection
A210: Rate Rider for Tax Change (2013) - effective until April 30, 2014 | H210: $/kW | I210: -0.1366 | K210: 6_P_VC_Rate_Rider_kW_3
A228: MONTHLY RATES AND CHARGES - Regulatory Component
A229: Wholesale Market Service Rate | H229: $/kWh | I229: 0.0044 | K229: 6_P_WMSR
A230: Rural Rate Protection Charge | H230: $/kWh | I230: 0.0012 | K230: 6_P_RRPC
A231: Standard Supply Service - Administrative Charge (if applicable) | H231: $ | I231: 0.25 | K231: 6_P_SSS
A236: MICROFIT SERVICE CLASSIFICATION
A237: MONTHLY RATES AND CHARGES - Delivery Component
A238: Service Charge | H238: $ | I238: 5.4 | K238: 7_P_MSC

Sheet 12. Summary Sheet
Y1: 3 | Z1: 3 | AA1: ≥
Z2: February
Z3: March
Z4: April
Z5: May
Z6: June
Z7: July
Z8: August
Z9: September
Z10: October
A11: The following table provides applicants with a class to class comparison of current vs. proposed rates. | Z11: November
Z12: December
A15: Current Rates | E15: Proposed Rates
A16: Rate Description | B16: Unit | C16: Amount | E16: Rate Description | F16: Unit | G16: Amount
A17: Residential | E17: Residential
A18: Service Charge | B18: $ | C18: 16.26 | E18: Service Charge | F18: $ | G18: 16.26
A19: Distribution Volumetric Rate | B19: $/kWh | C19: 0.014 | E19: Distribution Volumetric Rate | F19: $/kWh | G19: 0.014
A20: Low Voltage Service Rate | B20: $/kWh | C20: 0.0011 | E20: Low Voltage Service Rate | F20: $/kWh | G20: 0.0011
A21: Rate Rider for Deferral/Variance Account Disposition (2010) – Effective until April 30, 2014 | B21: $/kWh | C21: -0.0013 | E21: Rate Rider for Deferral/Variance Account Disposition (2010) – Effective until April 30, 2014 | F21: $/kWh | G21: -0.0013
A22: Rate Rider for Deferral/Variance Account Disposition (2012) – Effective until April 30, 2013 | B22: $/kWh | E22: Retail Transmission Rate - Network Service Rate | F22: $/kWh | G22: 0.0065
A23: Rate Rider for Global Adjustment Sub-Account Disposition (2012) – Effective until April 30, 2013 Applicable only for Non-RPP Customers | B23: $/kWh | C23: 0.0017 | E23: Retail Transmission Rate - Line and Transformation Connection Service Rate | F23: $/kWh | G23: 0.0034
A24: Rate Rider for Tax Adjustments - Effective until April 30, 2013 | B24: $/kWh | C24: -0.0003 | E24: Rate Rider for Smart Meter Incremental Revenue Requirement – in effect until the effective date of the next cost of service-based rate order | F24: $ | G24: 2.84
A25: Retail Transmission Rate - Network Service Rate | B25: $/kWh | C25: 0.0056 | E25: Rate Rider for Tax Change (2013) - effective until April 30, 2014 | F25: $/kWh | G25: -0.0003
A26: Retail Transmission Rate - Line and Transformation Connection Service Rate | B26: $/kWh | C26: 0.0032 | E26: Rate Rider for Smart Metering Entity Charge - effective until October 31, 2018 | F26: $ | G26: 0.79
A27: Rider for Disposition of Residual Historical Smart Meter Costs – effective until April 30, 2013 | B27: $ | C27: -1.21 | E27: Wholesale Market Service Rate | F27: $/kWh | G27: 0.0044
A28: Rate Rider for Smart Meter Incremental Revenue Requirement – in effect until the effective date of the next cost of service-based rate order | B28: $ | C28: 2.84 | E28: Rural Rate Protection Charge | F28: $/kWh | G28: 0.0012
A29: Wholesale Market Service Rate | B29: $/kWh | C29: 0.0052 | E29: Standard Supply Service - Administrative Charge (if applicable) | F29: $ | G29: 0.25
A30: Rural Rate Protection Charge - effective until April 30, 2012
A31: Rural Rate Protection Charge - effective on and after May 1, 2012 | B31: $/kWh | C31: 0.0011
A32: Standard Supply Service - Administrative Charge (if applicable) | B32: $ | C32: 0.25
A33: General Service Less Than 50 kW | E33: General Service Less Than 50 kW
A34: Service Charge | B34: $ | C34: 33.11 | E34: Service Charge | F34: $ | G34: 33.27
A35: Distribution Volumetric Rate | B35: $/kWh | C35: 0.0101 | E35: Distribution Volumetric Rate | F35: $/kWh | G35: 0.0101
A36: Low Voltage Service Rate | B36: $/kWh | C36: 0.001 | E36: Low Voltage Service Rate | F36: $/kWh | G36: 0.001
A37: Rate Rider for Deferral/Variance Account Disposition (2010) – Effective until April 30, 2014 | B37: $/kWh | C37: -0.0013 | E37: Rate Rider for Deferral/Variance Account Disposition (2010) – Effective until April 30, 2014 | F37: $/kWh | G37: -0.0013
A38: Rate Rider for Deferral/Variance Account Disposition (2012) – Effective until April 30, 2013 | B38: $/kWh | C38: -0.0009 | E38: Retail Transmission Rate - Network Service Rate | F38: $/kWh | G38: 0.006
A39: Rate Rider for Global Adjustment Sub-Account Disposition (2012) – Effective until April 30, 2013 Applicable only for Non-RPP Customers | B39: $/kWh | C39: 0.0017 | E39: Retail Transmission Rate - Line and Transformation Connection Service Rate | F39: $/kWh | G39: 0.0031
A40: Rate Rider for Tax Adjustments - Effective until April 30, 2013 | B40: $/kWh | C40: -0.0002 | E40: Rate Rider for Smart Meter Incremental Revenue Requirement – in effect until the effective date of the next cost of service-based rate order | F40: $ | G40: 7.02
A41: Retail Transmission Rate - Network Service Rate | B41: $/kWh | C41: 0.0052 | E41: Rate Rider for Tax Change (2013) - effective until April 30, 2014 | F41: $/kWh | G41: -0.0002
A42: Retail Transmission Rate - Line and Transformation Connection Service Rate | B42: $/kWh | C42: 0.0029 | E42: Rate Rider for Smart Metering Entity Charge - effective until October 31, 2018 | F42: $ | G42: 0.79
A43: Rate Rider for Disposition of Residual Historical Smart Meter Costs – effective until April 30, 2013 | B43: $ | C43: 5.77 | E43: Wholesale Market Service Rate | F43: $/kWh | G43: 0.0044
A44: Rate Rider for Smart Meter Incremental Revenue Requirement – in effect until the effective date of the next cost of service-based rate order | B44: $ | C44: 7.02 | E44: Rural Rate Protection Charge | F44: $/kWh | G44: 0.0012
A45: Wholesale Market Service Rate | B45: $/kWh | C45: 0.0052 | E45: Standard Supply Service - Administrative Charge (if applicable) | F45: $ | G45: 0.25
A46: Rural Rate Protection Charge - effective until April 30, 2012
A47: Rural Rate Protection Charge - effective on and after May 1, 2012 | B47: $/kWh | C47: 0.0011
A48: Standard Supply Service - Administrative Charge (if applicable) | B48: $ | C48: 0.25
A49: General Service 50 to 4,999 kW | E49: General Service 50 to 4,999 kW
A50: Service Charge | B50: $ | C50: 185.34 | E50: Service Charge | F50: $ | G50: 186.23
A51: Distribution Volumetric Rate | B51: $/kW | C51: 2.1822 | E51: Distribution Volumetric Rate | F51: $/kW | G51: 2.1927
A52: Low Voltage Service Rate | B52: $/kW | C52: 0.3999 | E52: Low Voltage Service Rate | F52: $/kW | G52: 0.3999
A53: Rate Rider for Deferral/Variance Account Disposition (2010) – Effective until April 30, 2014 | B53: $/kW | C53: -0.5054 | E53: Rate Rider for Deferral/Variance Account Disposition (2010) – Effective until April 30, 2014 | F53: $/kW | G53: -0.5054
A54: Rate Rider for Deferral/Variance Account Disposition (2012) – Effective until April 30, 2013 | B54: $/kW | C54: -0.7635 | E54: Retail Transmission Rate - Network Service Rate | F54: $/kW | G54: 2.4552
A55: Rate Rider for Global Adjustment Sub-Account Disposition (2012) – Effective until April 30, 2013 Applicable only for Non-RPP Customers | B55: $/kW | C55: 0.7235 | E55: Retail Transmission Rate - Line and Transformation Connection Service Rate | F55: $/kW | G55: 1.2284
A56: Rate Rider for Tax Adjustments - Effective until April 30, 2013 | B56: $/kW | C56: -0.0286 | E56: Rate Rider for Tax Change (2013) - effective until April 30, 2014 | F56: $/kW | G56: -0.0288
A57: Retail Transmission Rate - Network Service Rate | B57: $/kW | C57: 2.1108 | E57: Wholesale Market Service Rate | F57: $/kWh | G57: 0.0044
A58: Retail Transmission Rate - Line and Transformation Connection Service Rate | B58: $/kW | C58: 1.1463 | E58: Rural Rate Protection Charge | F58: $/kWh | G58: 0.0012
A59: Wholesale Market Service Rate | B59: $/kWh | C59: 0.0052 | E59: Standard Supply Service - Administrative Charge (if applicable) | F59: $ | G59: 0.25
A60: Rural Rate Protection Charge - effective until April 30, 2012
A61: Rural Rate Protection Charge - effective on and after May 1, 2012 | B61: $/kWh | C61: 0.0011
A62: Standard Supply Service - Administrative Charge (if applicable) | B62: $ | C62: 0.25
A63: Unmetered Scattered Load | E63: Unmetered Scattered Load
A64: Service Charge (per connection) | B64: $ | C64: 6.31 | E64: Service Charge (per connection) | F64: $ | G64: 6.34
A65: Distribution Volumetric Rate | B65: $/kWh | C65: 0.0089 | E65: Distribution Volumetric Rate | F65: $/kWh | G65: 0.0089
A66: Low Voltage Service Charge | B66: $/kWh | C66: 0.001 | E66: Low Voltage Service Charge | F66: $/kWh | G66: 0.001
A67: Rate Rider for Deferral/Variance Account Disposition (2010) – Effective until April 30, 2014 | B67: $/kWh | C67: -0.001 | E67: Rate Rider for Deferral/Variance Account Disposition (2010) – Effective until April 30, 2014 | F67: $/kWh | G67: -0.001
A68: Rate Rider for Deferral/Variance Account Disposition (2012) – Effective until April 30, 2013 | B68: $/kWh | C68: 0.0002 | E68: Retail Transmission Rate - Network Service Rate | F68: $/kWh | G68: 0.006
A69: Rate Rider for Tax Adjustments - Effective until April 30, 2013 | B69: $/kWh | C69: -0.0004 | E69: Retail Transmission Rate - Line and Transformation Connection Service Rate | F69: $/kWh | G69: 0.0031
A70: Retail Transmission Rate - Network Service Rate | B70: $/kWh | C70: 0.0052 | E70: Rate Rider for Tax Change (2013) - effective until April 30, 2014 | F70: $/kWh | G70: -0.0004
A71: Retail Transmission Rate - Line and Transformation Connection Service Rate | B71: $/kWh | C71: 0.0029 | E71: Wholesale Market Service Rate | F71: $/kWh | G71: 0.0044
A72: Wholesale Market Service Rate | B72: $/kWh | C72: 0.0052 | E72: Rural Rate Protection Charge | F72: $/kWh | G72: 0.0012
A73: Rural Rate Protection Charge - effective until April 30, 2012 | E73: Standard Supply Service - Administrative Charge (if applicable) | F73: $ | G73: 0.25
A74: Rural Rate Protection Charge - effective on and after May 1, 2012 | B74: $/kWh | C74: 0.0011
A75: Standard Supply Service - Administrative Charge (if applicable) | B75: $ | C75: 0.25
A76: Sentinel Lighting | E76: Sentinel Lighting
A77: Service Charge (per connection) | B77: $ | C77: 2.81 | E77: Service Charge (per connection) | F77: $ | G77: 3.32
A78: Distribution Volumetric Rate | B78: $/kW | C78: 10.9656 | E78: Distribution Volumetric Rate | F78: $/kW | G78: 12.9468
A79: Low Voltage Service Charge | B79: $/kW | C79: 0.3156 | E79: Low Voltage Service Charge | F79: $/kW | G79: 0.3156
A80: Rate Rider for Deferral/Variance Account Disposition (2010) – Effective until April 30, 2014 | B80: $/kW | C80: -0.4833 | E80: Rate Rider for Deferral/Variance Account Disposition (2010) – Effective until April 30, 2014 | F80: $/kW | G80: -0.4833
A81: Rate Rider for Deferral/Variance Account Disposition (2012) – Effective until April 30, 2013 | B81: $/kW | C81: 0.2977 | E81: Retail Transmission Rate - Network Service Rate | F81: $/kW | G81: 1.8609
A82: Rate Rider for Global Adjustment Sub-Account Disposition (2012) – Effective until April 30, 2013 Applicable only for Non-RPP Customers | B82: $/kW | C82: 0.6243 | E82: Retail Transmission Rate - Line and Transformation Connection Service Rate | F82: $/kW | G82: 0.9696
A83: Rate Rider for Tax Adjustments - Effective until April 30, 2013 | B83: $/kW | C83: -0.2029 | E83: Rate Rider for Tax Change (2013) - effective until April 30, 2014 | F83: $/kW | G83: -0.2444
A84: Retail Transmission Rate - Network Service Rate | B84: $/kW | C84: 1.5999 | E84: Wholesale Market Service Rate | F84: $/kWh | G84: 0.0044
A85: Retail Transmission Rate - Line and Transformation Connection Service Rate | B85: $/kW | C85: 0.9048 | E85: Rural Rate Protection Charge | F85: $/kWh | G85: 0.0012
A86: Wholesale Market Service Rate | B86: $/kWh | C86: 0.0052 | E86: Standard Supply Service - Administrative Charge (if applicable) | F86: $ | G86: 0.25
A87: Rural Rate Protection Charge - effective until April 30, 2012
A88: Rural Rate Protection Charge - effective on and after May 1, 2012 | B88: $/kWh | C88: 0.0011
A89: Standard Supply Service - Administrative Charge (if applicable) | B89: $ | C89: 0.25
A90: Street Lighting | E90: Street Lighting
A91: Service Charge (per connection) | B91: $ | C91: 1.26 | E91: Service Charge (per connection) | F91: $ | G91: 1.51
A92: Distribution Volumetric Rate | B92: $/kW | C92: 6.9657 | E92: Distribution Volumetric Rate | F92: $/kW | G92: 8.3561
A93: Low Voltage Service Charge | B93: $/kW | C93: 0.3091 | E93: Low Voltage Service Charge | F93: $/kW | G93: 0.3091
A94: Rate Rider for Deferral/Variance Account Disposition (2012) – Effective until April 30, 2013 | B94: $/kW | C94: -0.4492 | E94: Rate Rider for Deferral/Variance Account Disposition (2010) – Effective until April 30, 2014 | F94: $/kW | G94: -0.4492
A95: Rate Rider for Deferral/Variance Account Disposition (2012) – Effective until April 30, 2013 | B95: $/kW | C95: -0.2056 | E95: Rate Rider for Deferral/Variance Account Disposition (2012) – Effective until April 30, 2014 | F95: $/kW | G95: -0.2056
A96: Rate Rider for Global Adjustment Sub-Account Disposition (2012) – Effective until April 30, 2014 Applicable only for Non-RPP Customers | B96: $/kW | C96: 0.6088 | E96: Rate Rider for Global Adjustment Sub-Account Disposition (2012) – Effective until April 30, 2014 Applicable only for Non-RPP Customers | F96: $/kW | G96: 0.6088
A97: Rate Rider for Tax Adjustments - Effective until April 30, 2013 | B97: $/kW | C97: -0.1108 | E97: Retail Transmission Rate - Network Service Rate | F97: $/kW | G97: 1.8516
A98: Retail Transmission Rate - Network Service Rate | B98: $/kW | C98: 1.5919 | E98: Retail Transmission Rate - Line and Transformation Connection Service Rate | F98: $/kW | G98: 0.9495
A99: Retail Transmission Rate - Line and Transformation Connection Service Rate | B99: $/kW | C99: 0.8861 | E99: Rate Rider for Tax Change (2013) - effective until April 30, 2014 | F99: $/kW | G99: -0.1366
A100: Wholesale Market Service Rate | B100: $/kWh | C100: 0.0052 | E100: Wholesale Market Service Rate | F100: $/kWh | G100: 0.0044
A101: Rural Rate Protection Charge - effective until April 30, 2012 | E101: Rural Rate Protection Charge | F101: $/kWh | G101: 0.0012
A102: Rural Rate Protection Charge - effective on and after May 1, 2012 | B102: $/kWh | C102: 0.0011 | E102: Standard Supply Service - Administrative Charge (if applicable) | F102: $ | G102: 0.25
A103: Standard Supply Service - Administrative Charge (if applicable) | B103: $ | C103: 0.25
A104: MicroFit | E104: MicroFit
A105: Service Charge | B105: $ | C105: 5.25 | E105: Service Charge | F105: $ | G105: 5.4

Sheet 13. Final Tariff Schedule
Y1: 3 | Z1: 3 | AA1: ≥
Z2: February
Z3: March
Z4: April
Z5: May
Z6: June
Z7: July
Z8: August
Z9: September
Z10: October
Z11: November
A12: The following is a complete Tariff Schedule based on the information entered in this model. Please review. Note: This worksheet is unlocked and the print margins, row heights, number formats, etc. can be adjusted. | Z12: December
A19: ='1. Information Sheet'!F14 -> Orangeville Hydro Limited
A20: TARIFF OF RATES AND CHARGES
A21: ="Effective and Implementation Date " & TEXT('1. Information Sheet'!F26, "mmmm dd, yyyy") -> Effective and Implementation Date May 01, 2013
A23: This schedule supersedes and replaces all previously
A24: approved schedules of Rates, Charges and Loss Factors
A25: ='1. Information Sheet'!F18 -> EB-2012-0155
A26: RESIDENTIAL SERVICE CLASSIFICATION
A28: This classification refers to the supply of electrical energy to residential customers residing in detached, semi detached, townhouse (freehold or condominium) dwelling units duplexes or triplexes. Basic connection is defined as 100 amp 12/240 volt overhead service. Further servicing details are available in the distributor’s Conditions of Service.
A30: APPLICATION
A32: The application of these rates and charges shall be in accordance with the Licence of the Distributor and any Code or Order of the Board, and amendments thereto as approved by the Board, which may be applicable to the administration of this schedule.
A34: No rates and charges for the distribution of electricity and charges to meet the costs of any work or service done or furnished for the purpose of the distribution of electricity shall be made except as permitted by this schedule, unless required by the Distributor’s Licence or a Code or Order of the Board, and amendments thereto as approved by the Board, or as specified herein.
A36: Unless specifically noted, this schedule does not contain any charges for the electricity commodity, be it under the Regulated Price Plan, a contract with a retailer or the wholesale market price, as applicable.
A38: It should be noted that this schedule does not list any charges, assessments or credits that are required by law to be invoiced by a distributor and that are not subject to Board approval, such as the Debt Retirement Charge, the Global Adjustment, the Ontario Clean Energy Benefit and the HST.
A40: MONTHLY RATES AND CHARGES - Delivery Component
A42: Service Charge | H42: $ | I42: 16.26
A43: Distribution Volumetric Rate | H43: $/kWh | I43: 0.014
A44: Low Voltage Service Rate | H44: $/kWh | I44: 0.0011
A45: Rate Rider for Deferral/Variance Account Disposition (2010) – Effective until April 30, 2014 | H45: $/kWh | I45: -0.0013
A46: Retail Transmission Rate - Network Service Rate | H46: $/kWh | I46: 0.0065
A47: Retail Transmission Rate - Line and Transformation Connection Service Rate | H47: $/kWh | I47: 0.0034
A48: Rate Rider for Smart Meter Incremental Revenue Requirement – in effect until the effective date of the next cost of service-based rate order | H48: $ | I48: 2.84
A49: Rate Rider for Tax Change (2013) - effective until April 30, 2014 | H49: $/kWh | I49: -0.0003
A50: Rate Rider for Smart Metering Entity Charge - effective until October 31, 2018 | H50: $ | I50: 0.79
A52: MONTHLY RATES AND CHARGES - Regulatory Component
A54: Wholesale Market Service Rate | H54: $/kWh | I54: 0.0044
A55: Rural Rate Protection Charge | H55: $/kWh | I55: 0.0012
A56: Standard Supply Service - Administrative Charge (if applicable) | H56: $ | I56: 0.25
A59: GENERAL SERVICE LESS THAN 50 KW SERVICE CLASSIFICATION
A61: This classification refers to a non-residential account taking electricity at 750 volts or less whose monthly peak demand is less than or expected to be less than 50 kW. Further servicing details are available in our Conditions of Service.
A63: APPLICATION
A65: The application of these rates and charges shall be in accordance with the Licence of the Distributor and any Code or Order of the Board, and amendments thereto as approved by the Board, which may be applicable to the administration of this schedule.
A67: No rates and charges for the distribution of electricity and charges to meet the costs of any work or service done or furnished for the purpose of the distribution of electricity shall be made except as permitted by this schedule, unless required by the Distributor’s Licence or a Code or Order of the Board, and amendments thereto as approved by the Board, or as specified herein.
A69: Unless specifically noted, this schedule does not contain any charges for the electricity commodity, be it under the Regulated Price Plan, a contract with a retailer or the wholesale market price, as applicable.
A71: It should be noted that this schedule does not list any charges, assessments or credits that are required by law to be invoiced by a distributor and that are not subject to Board approval, such as the Debt Retirement Charge, the Global Adjustment, the Ontario Clean Energy Benefit and the HST.
A73: MONTHLY RATES AND CHARGES - Delivery Component
A75: Service Charge | H75: $ | I75: 33.27
A76: Distribution Volumetric Rate | H76: $/kWh | I76: 0.0101
A77: Low Voltage Service Rate | H77: $/kWh | I77: 0.001
A78: Rate Rider for Deferral/Variance Account Disposition (2010) – Effective until April 30, 2014 | H78: $/kWh | I78: -0.0013
A79: Retail Transmission Rate - Network Service Rate | H79: $/kWh | I79: 0.006
A80: Retail Transmission Rate - Line and Transformation Connection Service Rate | H80: $/kWh | I80: 0.0031
A81: Rate Rider for Smart Meter Incremental Revenue Requirement – in effect until the effective date of the next cost of service-based rate order | H81: $ | I81: 7.02
A82: Rate Rider for Tax Change (2013) - effective until April 30, 2014 | H82: $/kWh | I82: -0.0002
A83: Rate Rider for Smart Metering Entity Charge - effective until October 31, 2018 | H83: $ | I83: 0.79
A85: MONTHLY RATES AND CHARGES - Regulatory Component
A87: Wholesale Market Service Rate | H87: $/kWh | I87: 0.0044
A88: Rural Rate Protection Charge | H88: $/kWh | I88: 0.0012
A89: Standard Supply Service - Administrative Charge (if applicable) | H89: $ | I89: 0.25
A92: GENERAL SERVICE 50 TO 4,999 KW SERVICE CLASSIFICATION
A94: This classification refers to a non-residential account whose monthly average peak demand is equal to or greater than, or is expected to be equal to or greater than, 50 kW but less than 5000 kW. Further servicing details are available in our Conditions of Service.
A96: APPLICATION
A98: The application of these rates and charges shall be in accordance with the Licence of the Distributor and any Code or Order of the Board, and amendments thereto as approved by the Board, which may be applicable to the administration of this schedule.
A100: No rates and charges for the distribution of electricity and charges to meet the costs of any work or service done or furnished for the purpose of the distribution of electricity shall be made except as permitted by this schedule, unless required by the Distributor’s Licence or a Code or Order of the Board, and amendments thereto as approved by the Board, or as specified herein.
A102: Unless specifically noted, this schedule does not contain any charges for the electricity commodity, be it under the Regulated Price Plan, a contract with a retailer or the wholesale market price, as applicable.
A104: It should be noted that this schedule does not list any charges, assessments or credits that are required by law to be invoiced by a distributor and that are not subject to Board approval, such as the Debt Retirement Charge, the Global Adjustment, the Ontario Clean Energy Benefit and the HST.
A106: MONTHLY RATES AND CHARGES - Delivery Component
A108: Service Charge | H108: $ | I108: 186.23
A109: Distribution Volumetric Rate | H109: $/kW | I109: 2.1927
A110: Low Voltage Service Rate | H110: $/kW | I110: 0.3999
A111: Rate Rider for Deferral/Variance Account Disposition (2010) – Effective until April 30, 2014 | H111: $/kW | I111: -0.5054
A112: Retail Transmission Rate - Network Service Rate | H112: $/kW | I112: 2.4552
A113: Retail Transmission Rate - Line and Transformation Connection Service Rate | H113: $/kW | I113: 1.2284
A114: Rate Rider for Tax Change (2013) - effective until April 30, 2014 | H114: $/kW | I114: -0.0288
A116: MONTHLY RATES AND CHARGES - Regulatory Component
A118: Wholesale Market Service Rate | H118: $/kWh | I118: 0.0044
A119: Rural Rate Protection Charge | H119: $/kWh | I119: 0.0012
A120: Standard Supply Service - Administrative Charge (if applicable) | H120: $ | I120: 0.25
A123: UNMETERED SCATTERED LOAD SERVICE CLASSIFICATION
A125: This classification refers to an account taking electricity at 750 volts or less whose average monthly maximum demand is less than, or is forecast to be less than, 50 kW and the consumption is unmetered. Such connections include cable TV power packs, bus shelters, telephone booths, traffic lights, railway crossings, etc. The level of the consumption will be agreed to by the distributor and the customer, based on detailed manufacturer information/documentation with regard to electrical consumption of the unmetered load or periodic monitoring of actual consumption. Further servicing details are available in our Conditions of Service.
A127: APPLICATION
A129: The application of these rates and charges shall be in accordance with the Licence of the Distributor and any Code or Order of the Board, and amendments thereto as approved by the Board, which may be applicable to the administration of this schedule.
A131: No rates and charges for the distribution of electricity and charges to meet the costs of any work or service done or furnished for the purpose of the distribution of electricity shall be made except as permitted by this schedule, unless required by the Distributor’s Licence or a Code or Order of the Board, and amendments thereto as approved by the Board, or as specified herein.
A133: Unless specifically noted, this schedule does not contain any charges for the electricity commodity, be it under the Regulated Price Plan, a contract with a retailer or the wholesale market price, as applicable.
A135: It should be noted that this schedule does not list any charges, assessments or credits that are required by law to be invoiced by a distributor and that are not subject to Board approval, such as the Debt Retirement Charge, the Global Adjustment, the Ontario Clean Energy Benefit and the HST.
A137: MONTHLY RATES AND CHARGES - Delivery Component
A139: Service Charge (per connection) | H139: $ | I139: 6.34
A140: Distribution Volumetric Rate | H140: $/kWh | I140: 0.0089
A141: Low Voltage Service Charge | H141: $/kWh | I141: 0.001
A142: Rate Rider for Deferral/Variance Account Disposition (2010) – Effective until April 30, 2014 | H142: $/kWh | I142: -0.001
A143: Retail Transmission Rate - Network Service Rate | H143: $/kWh | I143: 0.006
A144: Retail Transmission Rate - Line and Transformation Connection Service Rate | H144: $/kWh | I144: 0.0031
A145: Rate Rider for Tax Change (2013) - effective until April 30, 2014 | H145: $/kWh | I145: -0.0004
A147: MONTHLY RATES AND CHARGES - Regulatory Component
A149: Wholesale Market Service Rate | H149: $/kWh | I149: 0.0044
A150: Rural Rate Protection Charge | H150: $/kWh | I150: 0.0012
A151: Standard Supply Service - Administrative Charge (if applicable) | H151: $ | I151: 0.25
A154: SENTINEL LIGHTING SERVICE CLASSIFICATION
A156: This classification refers to accounts that are an unmetered lighting load supplied to a sentinel light. Further servicing details are available in the distributor’s Conditions of Service.
A158: APPLICATION
A160: The application of these rates and charges shall be in accordance with the Licence of the Distributor and any Code or Order of the Board, and amendments thereto as approved by the Board, which may be applicable to the administration of this schedule.
A162: No rates and charges for the distribution of electricity and charges to meet the costs of any work or service done or furnished for the purpose of the distribution of electricity shall be made except as permitted by this schedule, unless required by the Distributor’s Licence or a Code or Order of the Board, and amendments thereto as approved by the Board, or as specified herein.
A164: Unless specifically noted, this schedule does not contain any charges for the electricity commodity, be it under the Regulated Price Plan, a contract with a retailer or the wholesale market price, as applicable.
A166: It should be noted that this schedule does not list any charges, assessments or credits that are required by law to be invoiced by a distributor and that are not subject to Board approval, such as the Debt Retirement Charge, the Global Adjustment, the Ontario Clean Energy Benefit and the HST.
A168: MONTHLY RATES AND CHARGES - Delivery Component
A170: Service Charge (per connection) | H170: $ | I170: 3.32
A171: Distribution Volumetric Rate | H171: $/kW | I171: 12.9468
A172: Low Voltage Service Charge | H172: $/kW | I172: 0.3156
A173: Rate Rider for Deferral/Variance Account Disposition (2010) – Effective until April 30, 2014 | H173: $/kW | I173: -0.4833
A174: Retail Transmission Rate - Network Service Rate | H174: $/kW | I174: 1.8609
A175: Retail Transmission Rate - Line and Transformation Connection Service Rate | H175: $/kW | I175: 0.9696
A176: Rate Rider for Tax Change (2013) - effective until April 30, 2014 | H176: $/kW | I176: -0.2444
A178: MONTHLY RATES AND CHARGES - Regulatory Component
A180: Wholesale Market Service Rate | H180: $/kWh | I180: 0.0044
A181: Rural Rate Protection Charge | H181: $/kWh | I181: 0.0012
A182: Standard Supply Service - Administrative Charge (if applicable) | H182: $ | I182: 0.25
A185: STREET LIGHTING SERVICE CLASSIFICATION
A187: This classification refers to accounts concerning roadway lighting for a Municipality, Regional Municipality, and/or the Ministry of Transportation. This lighting will be controlled by photocells. The consumption for these customers will be based on the calculated connected load times as established in the approved OEB Street Lighting Load Shape Template. Further servicing details are available in the distributor’s Conditions of Service.
A189: APPLICATION
A191: The application of these rates and charges shall be in accordance with the Licence of the Distributor and any Code or Order of the Board, and amendments thereto as approved by the Board, which may be applicable to the administration of this schedule.
A193: No rates and charges for the distribution of electricity and charges to meet the costs of any work or service done or furnished for the purpose of the distribution of electricity shall be made except as permitted by this schedule, unless required by the Distributor’s Licence or a Code or Order of the Board, and amendments thereto as approved by the Board, or as specified herein.
A195: Unless specifically noted, this schedule does not contain any charges for the electricity commodity, be it under the Regulated Price Plan, a contract with a retailer or the wholesale market price, as applicable.
A197: It should be noted that this schedule does not list any charges, assessments or credits that are required by law to be invoiced by a distributor and that are not subject to Board approval, such as the Debt Retirement Charge, charges for Ministry of Energy Conservation and Renewable Energy Program, the Global Adjustment, the Ontario Clean Energy Benefit and the HST.
A199: MONTHLY RATES AND CHARGES - Delivery Component
A201: Service Charge (per connection) | H201: $ | I201: 1.51
A202: Distribution Volumetric Rate | H202: $/kW | I202: 8.3561
A203: Low Voltage Service Charge | H203: $/kW | I203: 0.3091
A204: Rate Rider for Deferral/Variance Account Disposition (2010) – Effective until April 30, 2014 | H204: $/kW | I204: -0.4492
A205: Rate Rider for Deferral/Variance Account Disposition (2012) – Effective until April 30, 2014 | H205: $/kW | I205: -0.2056
A206: Rate Rider for Global Adjustment Sub-Account Disposition (2012) – Effective until April 30, 2014
A207: Applicable only for Non-RPP Customers | H207: $/kW | I207: 0.6088
A208: Retail Transmission Rate - Network Service Rate | H208: $/kW | I208: 1.8516
A209: Retail Transmission Rate - Line and Transformation Connection Service Rate | H209: $/kW | I209: 0.9495
A210: Rate Rider for Tax Change (2013) - effective until April 30, 2014 | H210: $/kW | I210: -0.1366
A212: MONTHLY RATES AND CHARGES - Regulatory Component
A214: Wholesale Market Service Rate | H214: $/kWh | I214: 0.0044
A215: Rural Rate Protection Charge | H215: $/kWh | I215: 0.0012
A216: Standard Supply Service - Administrative Charge (if applicable) | H216: $ | I216: 0.25
A219: MICROFIT SERVICE CLASSIFICATION
A221: This classification applies to an electricity generation facility contracted under the Ontario Power Authority’s microFIT program and connected to the distributor’s distribution system. Further servicing details are available in the distributor’s Conditions of Service.
A223: APPLICATION
A225: The application of these rates and charges shall be in accordance with the Licence of the Distributor and any Code or Order of the Board, and amendments thereto as approved by the Board, which may be applicable to the administration of this schedule.
A227: No rates and charges for the distribution of electricity and charges to meet the costs of any work or service done or furnished for the purpose of the distribution of electricity shall be made except as permitted by this schedule, unless required by the Distributor’s Licence or a Code or Order of the Board, and amendments thereto as approved by the Board, or as specified herein.
A229: Unless specifically noted, this schedule does not contain any charges for the electricity commodity, be it under the Regulated Price Plan, a contract with a retailer or the wholesale market price, as applicable.
A231: It should be noted that this schedule does not list any charges, assessments or credits that are required by law to be invoiced by a distributor and that are not subject to Board approval, such as the Debt Retirement Charge, the Global Adjustment, the Ontario Clean Energy Benefit and the HST.
A233: MONTHLY RATES AND CHARGES - Delivery Component
A235: Service Charge | H235: $ | I235: 5.4
A238: ALLOWANCES
A240: Transformer Allowance for Ownership - per kW of billing demand/month | H240: $/kW | I240: -0.6
A241: Primary Metering Allowance for transformer losses – applied to measured demand and energy | H241: % | I241: -1
A243: SPECIFIC SERVICE CHARGES
A245: APPLICATION
A247: The application of these rates and charges shall be in accordance with the Licence of the Distributor and any Code or
A248: Order of the Board, and amendments thereto as approved by the Board, which may be applicable to the
A249: administration of this schedule
A251: No charges to meet the costs of any work or service done or furnished for the purpose of the distribution of electricity
A252: shall be made except as permitted by this schedule, unless required by the Distributor’s Licence or a Code or Order
A253: of the Board, and amendments thereto as approved by the Board, or as specified herein.
A255: It should be noted that this schedule does not list any charges, assessments, or credits that are required by law to be
A256: invoiced by a distributor and that are not subject to Board approval, such as the Debt Retirement Charge, charges for
A257: the Ministry of Energy Conservation and Renewable Energy Program, the Global Adjustment, the Ontario Clean
A258: Energy Benefit and the HST.
A260: Customer Administration
A262: Arrears certificate | H262: $ | I262: 15
A263: Pulling Post Dated Cheques | H263: $ | I263: 15
A264: Notification charge | H264: $ | I264: 15
A265: Account History | H265: $ | I265: 15
A266: Credit Reference/credit check (plus credit agency costs) | H266: $ | I266: 15
A267: Returned cheque charge (plus bank charges) | H267: $ | I267: 15
A268: Charge to certify cheque | H268: $ | I268: 15
A269: Account set up charge/change of occupancy charge (plus credit agency costs if applicable – Residential) | H269: $ | I269: 30
A270: Meter dispute charge plus Measurement Canada fees (if meter found correct) | H270: $ | I270: 30
A271: Special meter reads | H271: $ | I271: 30
A274: Non-Payment of Account
A276: Late Payment – per month | H276: % | I276: 1.5
A277: Late Payment – per annum | H277: % | I277: 19.56
A278: Collection of account charge – no disconnection | H278: $ | I278: 30
A279: Disconnect/Reconnect at meter – during regular hours | H279: $ | I279: 65
A280: Disconnect/Reconnect at meter – after regular hours | H280: $ | I280: 185
A281: Disconnect/Reconnect at pole – during regular hours | H281: $ | I281: 185
A282: Disconnect/Reconnect Charge – At Pole – After Hours | H282: $ | I282: 415
A283: Temporary Service – Install & remove – overhead – no transformer | H283: $ | I283: 500
A284: Temporary Service Install & Remove – Underground – No Transformer | H284: $ | I284: 300
A285: Temporary service installation and removal – overhead – with transformer | H285: $ | I285: 1000
A286: Specific Charge for Access to the Power Poles - $/pole/year | H286: $ | I286: 22.35
A288: RETAIL SERVICE CHARGES (if applicable)
A290: The application of these rates and charges shall be in accordance with the Licence of the Distributor and any Code or
A291: Order of the Board, and amendments thereto as approved by the Board, which may be applicable to the
A292: administration of this schedule.
A294: No rates and charges for the distribution of electricity and charges to meet the costs of any work or service done or
A295: furnished for the purpose of the distribution of electricity shall be made except as permitted by this schedule, unless
A296: required by the Distributor’s Licence or a Code or Order of the Board, and amendments thereto as approved by the
A297: Board, or as specified herein.
A299: Unless specifically noted, this schedule does not contain any charges for the electricity commodity, be it under the
A300: Regulated Price Plan, a contract with a retailer or the wholesale market price, as applicable
A302: It should be noted that this schedule does not list any charges, assessments, or credits that are required by law to be
A303: invoiced by a distributor and that are not subject to Board approval, such as the Debt Retirement Charge, charges for
A304: the Ministry of Energy Conservation and Renewable Energy Program, the Global Adjustment, the Ontario Clean
A305: Energy Benefit and the HST.
... 20 more rows

Sheet 14. Bill Impacts
Z1: =MATCH(A13, '3. Rate Class Selection'!B19:B40,0) -> 1 | AA1: =VLOOKUP(A13, lists!AO:AP,2,0) -> kWh
A11: Choose a Rate Class from the drop-down menu below and click UPDATE. For Street Lighting and USL classes, please ensure that the number of customers is manually entered into cells B30 and B31. Click the UPDATE button to refresh the sheet.
A13: Residential | F13: =IF(ISERROR(SEARCH("MicroFit",A13,1))=FALSE,"Bill impact presentation for this class does not exist.", "") -> 
A15: Consumption | B15: 800 | C15: kWh | E15: =IF(AA1 = "kWh", "", "kW") -> 
A16: RPP Tier One | B16: 750 | C16: kWh
A17: Load Factor
A18: Loss Factor | B18: 1.0468
B21: CURRENT ESTIMATED BILL | E21: PROPOSED ESTIMATED BILL
B22: Volume | C22: Current Rate ($) | D22: Current Charge ($) | E22: Volume | F22: Proposed Rate ($) | G22: Proposed Charge ($) | I22: Change ($) | J22: Change (%) | K22: % of Total RPP Bill | L22: % of Total TOU Bill
A23: Energy First Tier (kWh) | B23: 750 | C23: 0.075 | D23: =B23*C23 -> 56.25 | E23: =B23 -> 750 | F23: =C23 -> 0.075 | G23: =E23*F23 -> 56.25 | I23: =G23-D23 -> 0 | J23: =I23/D23 -> 0 | K23: =G23/G50 -> 0.4849604078
A24: Energy Second Tier (kWh) | B24: 87.44 | C24: 0.088 | D24: =B24*C24 -> 7.69472 | E24: =B24 -> 87.44 | F24: =C24 -> 0.088 | G24: =E24*F24 -> 7.69472 | I24: =G24-D24 -> 0 | J24: =I24/D24 -> 0 | K24: =G24/G50 -> 0.06634016977
A26: TOU - Off Peak | B26: =0.64*$B$15*$B$18 -> 535.9616 | C26: 0.065 | D26: =C26*B26 -> 34.837504 | E26: =B26 -> 535.9616 | F26: =C26 -> 0.065 | G26: =F26*E26 -> 34.837504 | I26: =G26-D26 -> 0 | J26: =I26/D26 -> 0 | L26: =G26/G56 -> 0.2911616334
A27: TOU - Mid Peak | B27: =0.18*$B$15*$B$18 -> 150.7392 | C27: 0.1 | D27: =C27*B27 -> 15.07392 | E27: =B27 -> 150.7392 | F27: =C27 -> 0.1 | G27: =F27*E27 -> 15.07392 | H27: 1.507392 | I27: =G27-D27 -> 0 | J27: =I27/D27 -> 0 | L27: =G27/G56 -> 0.1259833991
A28: TOU - On Peak | B28: =0.18*$B$15*$B$18 -> 150.7392 | C28: 0.117 | D28: 17.6364864 | E28: 150.7392 | F28: 0.117 | G28: =F28*E28 -> 17.6364864 | H28: 2.063468909 | I28: 0 | J28: =I28/D28 -> 0 | L28: =G28/G56 -> 0.1474005769
A30: Service Charge | B30: 1 | C30: 16.26 | D30: 16.26 | E30: =B30 -> 1 | F30: 16.26 | G30: =F30*E30 -> 16.26 | H30: 264.3876 | I30: 0 | J30: =I30/D30 -> 0 | K30: =G30/G50 -> 0.1401858886 | L30: =G30/G56 -> 0.1358963076
A31: Service Charge Rate Rider(s) | B31: 1 | C31: 1.63 | D31: 1.63 | E31: =B31 -> 1 | F31: 3.63 | G31: =F31*E31 -> 3.63 | H31: =G31*F31 -> 13.1769 | I31: 2 | J31: 1.226993865 | K31: =G31/G50 -> 0.03129611165 | L31: =G31/G56 -> 0.03033847458
A32: Distribution Volumetric Rate | B32: 800 | C32: 0.014 | D32: 11.2 | E32: =B32 -> 800 | F32: 0.014 | G32: 11.2 | H32: 0.1568 | I32: 0 | J32: 0 | K32: =G32/G50 -> 0.09656100565 | L32: =G32/G56 -> 0.09360631274
A33: Low Voltage Volumetric Rate | B33: 800 | C33: 0.0011 | D33: 0.88 | E33: =B33 -> 800 | F33: 0.0011 | G33: 0.88 | H33: 0.000968 | I33: 0 | J33: 0 | K33: =G33/G50 -> 0.007586936158 | L33: =G33/G56 -> 0.007354781716
A34: Distribution Volumetric Rate Rider(s) | B34: 800 | C34: -0.0016 | D34: -1.28 | E34: 800 | F34: -0.0016 | G34: -1.28 | H34: 0.002048 | I34: 0 | J34: 0 | K34: =G34/G50 -> -0.0110355435 | L34: =G34/G56 -> -0.01069786431
A35: Total: Distribution | D35: =ROUND(SUM(D30:D34),2) -> 28.69 | G35: =ROUND(SUM(G30:G34),2) -> 30.69 | I35: =G35-D35 -> 2 | J35: 0.06971070059 | K35: =G35/G50 -> 0.2645943985 | L35: =G35/G56 -> 0.2564980123
A36: Retail Transmission Rate - Network Service Rate | B36: 837.44 | C36: 0.0056 | D36: 4.69 | E36: 837.44 | F36: 0.0065 | G36: 5.44 | I36: 0.75 | J36: 0.1599147122 | K36: =G36/G50 -> 0.04690105989 | L36: =G36/G56 -> 0.04546592333
A37: Retail Transmission Rate - Line and Transformation Connection Service Rate | B37: 837.44 | C37: 0.0032 | D37: 2.68 | E37: 837.44 | F37: 0.0034 | G37: 2.85 | I37: 0.17 | J37: 0.06343283582 | K37: =G37/G50 -> 0.02457132733 | L37: =G37/G56 -> 0.02381946351
A38: Total: Retail Transmission | D38: =SUM(D36:D37) -> 7.37 | G38: =SUM(G36:G37) -> 8.29 | I38: =ROUND(G38 - D38,2) -> 0.92 | J38: 0.1248303935 | K38: =G38/G50 -> 0.07147238722 | L38: =G38/G56 -> 0.06928538684
A39: Sub-Total: Delivery (Distribution and Retail Transmission) | D39: =SUM(D38,D35) -> 36.06 | G39: =SUM(G38,G35) -> 38.98 | I39: =G39 - D39 -> 2.92 | J39: 0.08097615086 | K39: =G39/G50 -> 0.3360667857 | L39: =G39/G56 -> 0.3257833992
A40: Wholesale Market Service Rate | B40: 837.44 | C40: 0.0052 | D40: =B40*C40 -> 4.354688 | E40: =B40 -> 837.44 | F40: 0.0052 | G40: =E40*F40 -> 4.354688 | I40: =G40-D40 -> 0 | J40: 0 | K40: =G40/G50 -> 0.03754402255 | L40: =G40/G56 -> 0.03639520418
A41: Rural Rate Protection Charge | B41: 837.44 | C41: 0.0011 | D41: =B41*C41 -> 0.921184 | E41: 837.44 | F41: 0.0011 | G41: =E41*F41 -> 0.921184 | I41: =G41-D41 -> 0 | J41: 0 | K41: =G41/G50 -> 0.00794200477 | L41: =G41/G56 -> 0.0076989855
A42: Standard Supply Service – Administration Charge (if applicable) | B42: 1 | C42: 0.25 | D42: 0.25 | E42: 1 | F42: 0.25 | G42: =E42*F42 -> 0.25 | I42: 0 | J42: 0 | K42: =G42/G50 -> 0.00215537959 | L42: =G42/G56 -> 0.002089426624
A43: Sub-Total: Regulatory | D43: =SUM(D40:D42) -> 5.525872 | G43: =SUM(G40:H42) -> 5.525872 | I43: =G43-D43 -> 0 | J43: 0 | K43: =G43/G50 -> 0.04764140691 | L43: =G43/G56 -> 0.0461836163
A44: Debt Retirement Charge (DRC) | B44: 800 | C44: 0.007 | D44: 5.6 | E44: =B44 -> 800 | F44: =C44 -> 0.007 | G44: =E44*F44 -> 5.6 | I44: 0 | J44: 0 | K44: =G44/G50 -> 0.04828050282 | L44: =G44/G56 -> 0.04680315637
A46: Total Bill on RPP (before taxes) | D46: 111.13 | G46: 114.05 | I46: =G46-D46 -> 2.92 | J46: =I46/D46 -> 0.02627553316 | K46: =G46/G50 -> 0.9832841691
A47: HST | C47: 0.13 | D47: =C47*D46 -> 14.4469 | F47: =C47 -> 0.13 | G47: =F47*G46 -> 14.8265 | I47: =G47-D47 -> 0.3796 | J47: =I47/D47 -> 0.02627553316 | K47: =G47/G50 -> 0.127826942
A48: Total Bill (including HST) | D48: =D47+D46 -> 125.5769 | G48: =G47+G46 -> 128.8765 | I48: =G48-D48 -> 3.2996 | J48: =I48/D48 -> 0.02627553316 | K48: =G48/G50 -> 1.111111111
A49: Ontario Clean Energy Benefit (OCEB) | C49: -0.1 | D49: =-0.1*D48 -> -12.55769 | F49: =C49 -> -0.1 | G49: =-0.1*G48 -> -12.88765 | I49: =G49-D49 -> -0.32996 | J49: =I49/D49 -> 0.02627553316 | K49: =G49/G50 -> -0.1111111111
A50: Total Bill on RPP (including OCEB) | D50: =D48+D49 -> 113.01921 | G50: =G48+G49 -> 115.98885 | I50: =G50-D50 -> 2.96964 | J50: =I50/D50 -> 0.02627553316 | K50: =G50/G50 -> 1
A52: Total Bill on TOU (before taxes) | D52: 114.73 | G52: 117.65 | I52: =G52-D52 -> 2.92 | J52: =I52/D52 -> 0.02545105901 | L52: =G52/G56 -> 0.9832841691
A53: HST | C53: 0.13 | D53: =C53*D52 -> 14.9149 | F53: =C53 -> 0.13 | G53: =F53*G52 -> 15.2945 | I53: =G53-D53 -> 0.3796 | J53: =I53/D53 -> 0.02545105901 | L53: =G53/G56 -> 0.127826942
A54: Total Bill (including HST) | D54: =D53+D52 -> 129.6449 | G54: =G53+G52 -> 132.9445 | I54: =G54-D54 -> 3.2996 | J54: =I54/D54 -> 0.02545105901 | L54: =G54/G56 -> 1.111111111
A55: Ontario Clean Energy Benefit (OCEB) | C55: -0.1 | D55: =-0.1*D54 -> -12.96449 | F55: =C55 -> -0.1 | G55: =-0.1*G54 -> -13.29445 | I55: =G55-D55 -> -0.32996 | J55: =I55/D55 -> 0.02545105901 | L55: =G55/G56 -> -0.1111111111
A56: Total Bill on TOU (including OCEB) | D56: =D54+D55 -> 116.68041 | G56: =G54+G55 -> 119.65005 | I56: =G56-D56 -> 2.96964 | J56: =I56/D56 -> 0.02545105901 | L56: =G56/G56 -> 1
A59: Applicants must provide bill impacts for residential at 800 kWh and GS<50kW at 2000 kWh. In addition, their filing should cover the range that is relevant to their service territory, class by class. A general guideline of consumption levels follows: Residential (kWh) - 100, 250, 500, 800, 1000, 1500, 2000 GS<50kW (kWh) - 1000, 2000, 5000, 10000, 15000 GS>50kW (kW) 100, 500, 1000 Large User - range appropriate for utility Street/Sentinel Lighting Classes and USL - 150 kWh and 1 kW, range appropriate for utility.

Sheet lists (hidden)
A1: Residential | B1: Embedded Distributor | C1: =COUNTA(B1:B17) -> 4 | I1: Distribution Volumetric Rate | L1: Loss Factors | N1: Units | O1: Units1 | P1: Units2 | Z1: Account History | AA1: Account set up charge/change of occupancy charge (plus credit agency costs if applicable) | AB1: Total Loss Factor – Embedded Distributor – Hydro One Networks Inc. | AM1: Algoma Power Inc. | AO1: Embedded Distributor | AP1: kW | AT1: Sub-Total: Delivery (Distribution and Retail Transmission)
A2: Residential - Time of Use | B2: General Service 3,000 to 4,999 kW | I2: GEA Rate Rider - Effective Until December 31, 2012 | L2: Total Loss Factor – Primary Metered Customer | N2: $ | O2: $/kWh | P2: $ | Z2: Account set up charge/change of occupancy charge | AA2: Administrative Billing Charge | AB2: Total Loss Factor – Primary Metered Customer | AM2: Atikokan Hydro Inc. | AO2: Farms – Single Phase energy-billed [F1] | AP2: kWh | AT2: Wholesale Market Service Rate | AW2: =AU2*AV2 -> 0 | AX2: =AU2 -> 0 | AY2: 0 | AZ2: =AX2*AY2 -> 0 | BB2: =AZ2-AW2 -> 0 | BC2: =BB2/AW2 -> 
A3: Residential Regular | B3: General Service 1,000 to 4,999 kW | I3: Green Energy Act Initiatives Funding Adder | L3: Total Loss Factor – Primary Metered Customer < 5,000 kW | N3: $/kWh | O3: $/kW | P3: % | W3: MSC | Z3: Account set up charge/change of occupancy charge (plus credit agency costs if applicable – Residential) | AA3: Bell Canada Pole Rentals | AB3: Total Loss Factor – Primary Metered Customer < 5,000 kW | AM3: Attawapiskat Power Corporation | AO3: Farms – Three Phase energy-billed [F3] | AP3: kWh | AT3: Rural Rate Protection Charge | AW3: =AU3*AV3 -> 0 | AX3: 0 | AY3: 0 | AZ3: =AX3*AY3 -> 0 | BB3: =AZ3-AW3 -> 0 | BC3: =BB3/AW3 -> 
A4: Residential Urban | B4: General Service Equal To Or Greater Than 1,500 kW - Interval Metered | I4: Green Energy Act Plan Funding Adder – Effective until March 31, 2013 | L4: Total Loss Factor – Primary Metered Customer > 5,000 kW | N4: $/kW | O4: $/kVA | W4: SM_Rate_Adder | Z4: Account set up charge/change of occupancy charge (plus credit agency costs if applicable) | AA4: Clearance Pole Attachment charge $/pole/year | AB4: Total Loss Factor – Primary Metered Customer > 5,000 kW | AM4: Bluewater Power Distribution Corp. | AO4: General Service 50 to 2,499 kW | AP4: kW | AT4: Standard Supply Service – Administration Charge (if applicable) | AW4: 0 | AX4: 0 | AY4: 0 | AZ4: =AX4*AY4 -> 0 | BB4: 0
A5: General Service Less Than 50 kW | I5: Low Voltage Service Charge | L5: Total Loss Factor – Secondary Metered Customer | N5: $/kVA | W5: MSC_Rate_Rider_ | Z5: Arrears certificate | AA5: Collection of account charge – no disconnection | AB5: Total Loss Factor – Secondary Metered Customer | AM5: Brant County Power | AO5: General Service - Commercial | AP5: kW | AT5: Sub-Total: Regulatory | AW5: =SUM(AW2:AW4) -> 0 | AZ5: =SUM(AZ2:BA4) -> 0 | BB5: =AZ5-AW5 -> 0
A6: General Service Less Than 50 kW – Single Phase energy-billed [G1] | I6: Low Voltage Service Rate | L6: Total Loss Factor – Secondary Metered Customer < 5,000 kW | W6: VC | Z6: Arrears certificate (credit reference) | AA6: Collection of account charge – no disconnection – after regular hours | AB6: Total Loss Factor – Secondary Metered Customer < 5,000 kW | AM6: Brantford Power Inc. | AO6: General Service - Institutional | AP6: kW | AT6: Debt Retirement Charge (DRC) | AW6: 0 | AX6: =AU6 -> 0 | AY6: =AV6 -> 0 | AZ6: =AX6*AY6 -> 0 | BB6: 0
I7: Low Voltage Volumetric Rate
A8: General Service Less Than 50 kW – Three Phase energy-billed [G3] | L8: Total Loss Factor – Secondary Metered Customer > 5,000 kW | W8: VC_Rate_Rider_ | Z8: Charge to certify cheque | AA8: Collection of account charge – no disconnection - during regular business hours | AB8: Total Loss Factor – Secondary Metered Customer > 5,000 kW | AM8: Burlington Hydro Inc. | AO8: General Service 1,000 to 2,999 kW | AP8: kW | AT8: Total Bill on RPP (before taxes) | BB8: =AZ8-AW8 -> 0
A9: General Service Less Than 50 kW – Transmission Class energy-billed [T] | I9: Minimum Distribution Charge – per KW of maximum billing demand in the previous 11 months | L9: Distribution Loss Factor - Secondary Metered Customer < 5,000 kW | W9: VC_GA_Rate_Rider_kW_ | Z9: Collection of Account Charge – No Disconnection | AA9: Collection of account charge – no disconnection – during regular hours | AM9: Cambridge and North Dumfries Hydro | AO9: General Service 1,000 to 4,999 kW | AP9: kW | AT9: HST | AW9: =AV9*AW8 -> 0 | AY9: =AV9 -> 0 | AZ9: =AY9*AZ8 -> 0 | BB9: =AZ9-AW9 -> 0 | BC9: =BB9/AW9 -> 
A10: General Service Less Than 50 kW – Urban energy-billed [UG] | I10: Monthly Distribution Wheeling Service Rate – Dedicated LV Line | L10: Distribution Loss Factor - Secondary Metered Customer > 5,000 kW | W10: VC_LV_Rate | Z10: Credit Card Convenience Charge | AA10: Collection/Disconnection/Load Limiter/Reconnection – if in Community | AM10: Canadian Niagara Power Inc. – Eastern Ontario Power/Fort Erie/Port Colborne | AO10: General Service 1,000 to 4,999 kW - Interval Meters | AP10: kW | AT10: Total Bill (including HST) | AW10: =AW9+AW8 -> 0 | AZ10: =AZ9+AZ8 -> 0 | BB10: =AZ10-AW10 -> 0 | BC10: =BB10/AW10 -> 
A11: General Service 50 to 2,499 kW | I11: Monthly Distribution Wheeling Service Rate – Hydro One Networks | L11: Distribution Loss Factor - Primary Metered Customer < 5,000 kW | W11: RTSR_Network | Z11: Credit check (plus credit agency costs) | AA11: Credit Card Convenience Charge | AM11: Centre Wellington Hydro Ltd. | AO11: General Service 1,000 To 4,999 kW (co-generation) | AP11: kW | AT11: Ontario Clean Energy Benefit (OCEB) | AW11: =-0.1*AW10 -> 0 | AY11: =AV11 -> 0 | AZ11: =-0.1*AZ10 -> 0 | BB11: =AZ11-AW11 -> 0 | BC11: =BB11/AW11 -> 
A12: General Service - Commercial | I12: Monthly Distribution Wheeling Service Rate – Shared LV Line | L12: Distribution Loss Factor - Primary Metered Customer > 5,000 kW | W12: RTSR_Connection | Z12: Credit reference Letter | AA12: Disconnect/Reconnect at meter – after regular hours | AM12: Chapleau Public Utilities Corporation | AO12: General Service 1,500 to 4,999 kW | AP12: kW | AT12: Total Bill on RPP (including OCEB) | AW12: =AW10+AW11 -> 0 | AZ12: =AZ10+AZ11 -> 0 | BB12: =AZ12-AW12 -> 0 | BC12: =BB12/AW12 -> 
I13: Monthly Distribution Wheeling Service Rate – Waterloo North Hydro
A14: General Service - Institutional | L14: Total Loss Factor - Embedded Distributor | W14: RTSR_Network_Interval | Z14: Credit reference/credit check (plus credit agency costs – General Service) | AA14: Disconnect/Reconnect at meter – during regular hours | AM14: COLLUS Power Corp. | AO14: General Service 2,500 to 4,999 kW | AP14: kW | AT14: Total Bill on TOU (before taxes) | BB14: =AZ14-AW14 -> 0
A15: General Service 1,000 to 2,999 kW | I15: Rate Rider for Capital Gain | L15: Total Loss Factor – Embedded Distributor – Hydro One Networks Inc. | W15: RTSR_Connection_Interval | Z15: Credit Reference/credit check (plus credit agency costs) | AA15: Disconnect/Reconnect at pole – after regular hours | AM15: Cooperative Hydro Embrun Inc. | AO15: General Service 3,000 to 4,999 kW | AP15: kW | AT15: HST | AW15: =AV15*AW14 -> 0 | AY15: =AV15 -> 0 | AZ15: =AY15*AZ14 -> 0 | BB15: =AZ15-AW15 -> 0 | BC15: =BB15/AW15 -> 
A16: General Service 1,000 to 4,999 kW | I16: Rate Rider for Capital Gain – Effective until April 30, 2014 | W16: RTSR_Network_Interval_GR1000kW | Z16: Dispute Test – Commercial self contained -- MC | AA16: Disconnect/Reconnect at pole – during regular hours | AM16: E.L.K. Energy Inc. | AO16: General Service 3,000 to 4,999 kW - Intermediate Use | AP16: kW | AT16: Total Bill (including HST) | AW16: =AW15+AW14 -> 0 | AZ16: =AZ15+AZ14 -> 0 | BB16: =AZ16-AW16 -> 0 | BC16: =BB16/AW16 -> 
A17: General Service 1,000 to 4,999 kW - Interval Meters | I17: Rate Rider for Deferral/Variance Account Disposition | W17: RTSR_Connection_Interval_GR1000kW | Z17: Dispute Test – Commercial TT -- MC | AA17: Disconnect/Reconnect Charge – At Meter – After Hours | AM17: Enersource Hydro Mississauga Inc. | AO17: General Service 3,000 to 4,999 kW - Interval Metered | AP17: kW | AT17: Ontario Clean Energy Benefit (OCEB) | AW17: =-0.1*AW16 -> 0 | AY17: =AV17 -> 0 | AZ17: =-0.1*AZ16 -> 0 | BB17: =AZ17-AW17 -> 0 | BC17: =BB17/AW17 -> 
A18: General Service 1,000 To 4,999 kW (co-generation) | I18: Rate Rider for Deferral/Variance Account Disposition (2009) | W18: RTSR_Line_Connection | Z18: Dispute Test – Residential | AA18: Disconnect/Reconnect Charge – At Meter – During Regular Hours | AM18: Entegrus Powerlines Inc. | AO18: General Service 3,000 to 4,999 kW - Time of Use | AP18: kW | AT18: Total Bill on TOU (including OCEB) | AW18: =AW16+AW17 -> 0 | AZ18: =AZ16+AZ17 -> 0 | BB18: =AZ18-AW18 -> 0 | BC18: =BB18/AW18 -> 
A19: General Service 1,500 to 4,999 kW | I19: Rate Rider for Deferral/Variance Account Disposition (2010) | W19: RTSR_Transformer_Connection | Z19: Duplicate Invoices for previous billing | AA19: Disconnect/Reconnect Charge – At Pole – After Hours | AM19: ENWIN Utilities Ltd. | AO19: General Service 50 to 1,000 kW | AP19: kW
A20: General Service 2,500 to 4,999 kW | I20: Rate Rider for Deferral/Variance Account Disposition (2010) – Applicable only for Wholesale Market Participants | W20: WMSR | Z20: Easement Letter | AA20: Disconnect/Reconnect Charge – At Pole – During Regular Hours | AM20: Erie Thames Powerlines Corp. | AO20: General Service 50 to 1,000 kW - Interval Meters | AP20: kW
A21: General Service 3,000 to 4,999 kW | I21: Rate Rider for Deferral/Variance Account Disposition (2010) – Effective until April 30, 2012 | W21: RRRP | Z21: Income Tax Letter | AA21: Disconnect/Reconnect Charges for non payment of account - At Meter After Hours | AM21: Espanola Regional Hydro Distribution Corporation | AO21: General Service 50 to 1,000 kW - Non Interval Meters | AP21: kW
A22: General Service 3,000 to 4,999 kW - Intermediate Use | I22: Rate Rider for Deferral/Variance Account Disposition (2010) – Effective until April 30, 2014 | W22: SPC | Z22: Interval Meter Interrogation | AA22: Disconnect/Reconnect charges for non payment of account – at meter after regular hours | AM22: Essex Powerlines Corporation | AO22: General Service 50 to 1,499 kW | AP22: kW
A23: General Service 3,000 to 4,999 kW - Interval Metered | I23: Rate Rider for Deferral/Variance Account Disposition (2010) – Effective until December 31, 2014 | W23: DRC | Z23: Interval meter request change | AA23: Disconnect/Reconnect Charges for non payment of account - At Meter During Regular Hours | AM23: Festival Hydro Inc. | AO23: General Service 50 to 1,499 kW - Interval Metered | AP23: kW
A24: General Service 3,000 to 4,999 kW - Time of Use | I24: Rate Rider for Deferral/Variance Account Disposition (2011) | W24: SSS | Z24: Legal letter | AA24: Disconnect/Reconnect charges for non payment of account – at meter during regular hours | AM24: Fort Albany Power Corporation | AO24: General Service 50 to 2,999 kW | AP24: kW
A25: General Service 50 to 1,000 kW | I25: Rate Rider for Deferral/Variance Account Disposition (2011) – Applicable only for Wholesale Market Participants | W25: SFLF | Z25: Legal letter charge | AA25: Disconnect/Reconnect charges for non payment of account – at pole after regular hours | AM25: Fort Frances Power Corporation | AO25: General Service 50 to 2,999 kW - Interval Metered | AP25: kW
A26: General Service 50 to 1,000 kW - Interval Meters | B26: January | I26: Rate Rider for Deferral/Variance Account Disposition (2011) – Effective until April 30, 2014 | W26: DLF_Secondary_LT_5000kW | Z26: Meter dispute charge plus Measurement Canada fees (if meter found correct) | AA26: Disconnect/Reconnect charges for non payment of account – at pole during regular hours | AM26: Greater Sudbury Hydro Inc. | AO26: General Service 50 to 2,999 kW - Time of Use | AP26: kW
A27: General Service 50 to 1,000 kW - Non Interval Meters | B27: February | I27: Rate Rider for Deferral/Variance Account Disposition (2012) – Effective until December 31, 2012 | W27: DLF_Secondary_GT_5000kW | Z27: Notification charge | AA27: Disconnect/Reconnection for >300 volts - after regular hours | AM27: Grimsby Power Inc. | AO27: General Service 50 to 4,999 kW | AP27: kW
A28: General Service 50 to 1,499 kW | B28: March | I28: Rate Rider for Deferral/Variance Account Disposition (2012) – Effective until March 31, 2013 | W28: DLF_Primary_LT_5000kW | Z28: Pulling Post Dated Cheques | AA28: Disconnect/Reconnection for >300 volts - during regular hours | AM28: Guelph Hydro Electric Systems Inc. | AO28: General Service 50 to 4,999 kW – Interval Metered | AP28: kW
A29: General Service 50 to 1,499 kW - Interval Metered | B29: April | I29: Rate Rider for Deferral/Variance Account Disposition (2012) – Effective until April 30, 2013 | W29: DLF_Primary_GT_5000kW | Z29: Request for other billing information | AA29: Disposal of Concrete Poles | AM29: Haldimand County Hydro Inc. | AO29: General Service 50 to 4,999 kW - Time of Use | AP29: kW
A30: General Service 50 to 2,999 kW | B30: May | I30: Rate Rider for Deferral/Variance Account Disposition (2012) – Effective until April 30, 2014 | W30: TLF_Secondary_LT_5000kW | Z30: Returned cheque (plus bank charges) | AA30: Dispute Test – Commercial TT -- MC | AM30: Halton Hills Hydro Inc. | AO30: General Service 50 to 4,999 kW (CoGeneration) | AP30: kW
A31: General Service 50 to 2,999 kW - Interval Metered | B31: June | I31: Rate Rider for Deferral/Variance Account Disposition (2012) – Effective until December 31, 2013 | W31: TLF_Secondary_GT_5000kW | Z31: Returned cheque charge (plus bank charges) | AA31: Install/Remove load control device – after regular hours | AM31: Hearst Power Distribution Co. Ltd. | AO31: General Service 50 to 4,999 kW (formerly Time of Use) | AP31: kW
A32: General Service 50 to 2,999 kW - Time of Use | B32: July | I32: Rate Rider for Disposition of Post Retirement Actuarial Gain – Effective until March 31, 2025 | W32: TLF_Primary_LT_5000kW | Z32: Special Billing Service (aggregation) | AA32: Install/Remove load control device – during regular hours | AM32: Horizon Utilities Corporation | AO32: General Service 50 to 499 kW | AP32: kW
A33: General Service 50 to 4,999 kW | B33: August | I33: Rate Rider for Disposition of PILs Deferral/Variance Account – Effective until March 31, 2016 | W33: TLF_Primary_GT_5000kW | Z33: Special Billing Service (sub-metering charge per meter) | AA33: Interval Meter Interrogation | AM33: Hydro 2000 Inc. | AO33: General Service 50 to 699 kW | AP33: kW
A34: General Service 50 to 4,999 kW – Interval Metered | B34: September | I34: Rate Rider for Foregone Incremental Revenue | W34: TLF_EmbeddedDistributor | Z34: Special meter reads | AA34: Interval Meter Load Management Tool Charge $/month | AM34: Hydro Hawkesbury Inc. | AO34: General Service 50 to 999 kW | AP34: kW
A35: General Service 50 to 4,999 kW - Time of Use | B35: October | I35: Rate Rider for Foregone Incremental Revenue for Low Voltage Service | Z35: Statement of Account | AA35: Interval meter request change | AM35: Hydro One Brampton Networks Inc. | AO35: General Service 50 to 999 kW - Interval Metered | AP35: kW
A36: General Service 50 to 4,999 kW (CoGeneration) | B36: November | I36: Rate Rider for Foregone Revenue Recovery | Z36: Unprocessed Payment Charge (plus bank charges) | AA36: Late Payment – per annum | AM36: Hydro One Networks Inc. | AO36: General Service 500 to 4,999 kW | AP36: kW
A37: General Service 50 to 4,999 kW (formerly Time of Use) | B37: December | I37: Rate Rider for Foregone Revenue Recovery (2012) - Effective Until December 31, 2012 | AA37: Late Payment – per month | AM37: Hydro One Remote Communities Inc. | AO37: General Service 700 to 4,999 kW | AP37: kW
A38: General Service 50 to 499 kW | I38: Rate Rider for Recovery of Foregone Revenue – Effective until December 31, 2012 | AA38: Layout fees | AM38: Hydro Ottawa Limited | AO38: General Service Equal To Or Greater Than 1,500 kW | AP38: kW
A39: General Service 50 to 699 kW | I39: Rate Rider for Global Adjustment Sub-Account (2010) – Applicable only for Non-RPP Customers | AA39: Meter dispute charge plus Measurement Canada fees (if meter found correct) | AM39: Innisfil Hydro Dist. Systems Limited | AO39: General Service Equal To Or Greater Than 1,500 kW - Interval Metered | AP39: kW
A40: General Service 50 to 999 kW | I40: Rate Rider for Global Adjustment Sub-Account (2010) – Applicable only for Non-RPP Customers – Effective until April 30, 2012 | AA40: Meter Interrogation Charge | AM40: Kashechewan Power Corporation | AO40: General Service Greater Than 1,000 kW | AP40: kW
A41: General Service 50 to 999 kW - Interval Metered | I41: Rate Rider for Global Adjustment Sub-Account (2011) – Applicable only for Non-RPP Customers | AA41: Missed Service Appointment | AM41: Kenora Hydro Electric Corporation Ltd. | AO41: General Service Intermediate 1,000 To 4,999 kW | AP41: kW
A42: General Service 500 to 4,999 kW | I42: Rate Rider for Global Adjustment Sub-Account (2012) – Applicable only for Non-RPP Customers – Effective until December 31, 2013 | AA42: Norfolk Pole Rentals – Billed | AM42: Kingston Hydro Corporation | AO42: General Service Intermediate Rate Class 1,000 To 4,999 kW (formerly General Service > 50 kW Customers) | AP42: kW
A43: General Service 700 to 4,999 kW | I43: Rate Rider for Global Adjustment Sub-Account Disposition – Applicable only for Non-RPP Customers | AA43: Optional Interval/TOU Meter charge $/month | AM43: Kitchener-Wilmot Hydro Inc. | AO43: General Service Intermediate Rate Class 1,000 To 4,999 kW (formerly Large Use Customers) | AP43: kW
A44: General Service Equal To Or Greater Than 1,500 kW | I44: Rate Rider for Global Adjustment Sub-Account Disposition (2010 credit) – Applicable only for Non-RPP Customers | AA44: Overtime Locate | AM44: Lakefront Utilities Inc. | AO44: General Service Less Than 50 kW | AP44: kWh
A45: General Service Equal To Or Greater Than 1,500 kW - Interval Metered | I45: Rate Rider for Global Adjustment Sub-Account Disposition (2010 recalculated) – Applicable only for Non-RPP Customers | AA45: Owner Requested Disconnection/Reconnection – after regular hours | AM45: Lakeland Power Distribution Ltd. | AO45: General Service Less Than 50 kW – Single Phase energy-billed [G1] | AP45: kWh
A46: General Service Greater Than 1,000 kW | I46: Rate Rider for Global Adjustment Sub-Account Disposition (2010) – Effective until April 30, 2012 Applicable only for Non-RPP Customers | AA46: Owner Requested Disconnection/Reconnection – during regular hours | AM46: London Hydro Inc. | AO46: General Service Less Than 50 kW – Three Phase energy-billed [G3] | AP46: kWh
A47: General Service Intermediate 1,000 To 4,999 kW | I47: Rate Rider for Global Adjustment Sub-Account Disposition (2010) – Effective until April 30, 2014 Applicable only for Non-RPP Customers | AA47: Returned cheque (plus bank charges) | AM47: Midland Power Utility Corporation | AO47: General Service Less Than 50 kW – Transmission Class energy-billed [T] | AP47: kWh
A48: General Service Intermediate Rate Class 1,000 To 4,999 kW (formerly General Service > 50 kW Customers) | I48: Rate Rider for Global Adjustment Sub-Account Disposition (2011) – Applicable only for Non-RPP Customers and excluding Wholesale Market Participants | AA48: Rural system expansion / line connection fee | AM48: Milton Hydro Distribution Inc. | AO48: General Service Less Than 50 kW – Urban energy-billed [UG] | AP48: kWh
A49: General Service Intermediate Rate Class 1,000 To 4,999 kW (formerly Large Use Customers) | I49: Rate Rider for Global Adjustment Sub-Account Disposition (2011) – Effective until April 30, 2014 Applicable only for Non-RPP Customers | AA49: Same Day Open Trench | AM49: Newmarket – Tay Power Distribution Ltd. | AO49: General Service Single Phase – G1 | AP49: kW
A50: Large Use | I50: Rate Rider for Global Adjustment Sub-Account Disposition (2012) – Effective until March 31, 2013 Applicable only for Non-RPP Customers | AA50: Scheduled Day Open Trench | AM50: Niagara Peninsula Energy Inc. | AO50: General Service Three Phase – G3 | AP50: kW
A51: Large Use - 3TS | I51: Rate Rider for Global Adjustment Sub-Account Disposition (2012) – Effective until April 30, 2013 Applicable only for Non-RPP Customers | AA51: Service call – after regular hours | AM51: Niagara-on-the-Lake Hydro Inc. | AO51: Intermediate With Self Generation | AP51: kW
A52: Large Use - Ford Annex | I52: Rate Rider for Global Adjustment Sub-Account Disposition (2012) – Effective until April 30, 2014 Applicable only for Non-RPP Customers | AA52: Service call – customer owned equipment | AM52: Norfolk Power Distribution Ltd. | AO52: Large Use | AP52: kW
A53: Large Use - Regular | I53: Rate Rider for Lost Revenue Adjustment Mechanism (LRAM) Recovery | AA53: Service Call – Customer-owned Equipment – After Regular Hours | AM53: North Bay Hydro Distribution Limited | AO53: Large Use - 3TS | AP53: kW
A54: Large Use > 5000 kW | I54: Rate Rider for Lost Revenue Adjustment Mechanism (LRAM) Recovery – Effective until April 30, 2013 | AA54: Service Call – Customer-owned Equipment – During Regular Hours | AM54: Northern Ontario Wires Inc. | AO54: Large Use - Ford Annex | AP54: kW
A55: MicroFit | I55: Rate Rider for Lost Revenue Adjustment Mechanism (LRAM) Recovery – Effective until April 30, 2014 | AA55: Service Charge for onsite interrogation of interval meter due to customer phone line failure - required weekly until line repaired $ 6 | AM55: Oakville Hydro Distribution Inc. | AO55: Large Use - Regular | AP55: kW
A56: Sentinel Lighting | I56: Rate Rider for Lost Revenue Adjustment Mechanism (LRAM) Recovery – Effective until December 31, 2012 | AA56: Service Layout - Commercial | AM56: Orangeville Hydro Limited | AO56: Large Use > 5000 kW | AP56: kW
A57: Stand-By | I57: Rate Rider for Lost Revenue Adjustment Mechanism (LRAM) Recovery (2010) | AA57: Service Layout - ResidentiaI | AM57: Orillia Power Distribution Corp. | AO57: MicroFit | AP57: $
A58: Street Lighting | I58: Rate Rider for Lost Revenue Adjustment Mechanism (LRAM) Recovery (2011) | AA58: Special Billing Service (sub-metering charge per meter) | AM58: Oshawa PUC Networks Inc. | AO58: Residential | AP58: kWh
A59: Unmetered Scattered Load | I59: Rate Rider for Lost Revenue Adjustment Mechanism (LRAM) Recovery / Shared Savings Mechanism (SSM) Recovery | AA59: Special meter reads | AM59: Ottawa River Power Corporation | AO59: Residential - Hensall | AP59: kWh
A60: Embedded Distributor | I60: Rate Rider for Lost Revenue Adjustment Mechanism (LRAM) Recovery / Shared Savings Mechanism (SSM) Recovery – Effective until April 30, 2015 | AA60: Specific Charge for Access to the Power Poles - $/pole/year | AM60: Parry Sound Power Corporation | AO60: Residential – High Density [R1] | AP60: kWh
A61: Farms – Single Phase energy-billed [F1] | I61: Rate Rider for Lost Revenue Adjustment Mechanism (LRAM) Recovery / Shared Savings Mechanism (SSM) Recovery (2009) | AA61: Specific Charge for Bell Canada Access to the Power Poles – per pole/year | AM61: Peterborough Distribution Inc. | AO61: Residential – Normal Density [R2] | AP61: kWh
A62: Farms – Three Phase energy-billed [F3] | I62: Rate Rider for Lost Revenue Adjustment Mechanism (LRAM) Recovery / Shared Savings Mechanism (SSM) Recovery (2010) | AA62: Switching for company maintenance – Charge based on Time and Materials | AM62: PowerStream Inc. | AO62: Residential - Time of Use | AP62: kWh
A63: General Service Single Phase – G1 | I63: Rate Rider for Lost Revenue Adjustment Mechanism (LRAM) Recovery / Shared Savings Mechanism (SSM) Recovery (2011) | AA63: Temporary Service – Install & remove – overhead – no transformer | AM63: PUC Distribution Inc. | AO63: Residential – Urban [UR] | AP63: kWh
A64: General Service Three Phase – G3 | I64: Rate Rider for Lost Revenue Adjustment Mechanism (LRAM) Recovery / Shared Savings Mechanism (SSM) Recovery (2012) | AA64: Temporary Service – Install & remove – overhead – with transformer | AM64: Renfrew Hydro Inc. | AO64: Residential Regular | AP64: kWh
A65: Intermediate With Self Generation | I65: Rate Rider for Lost Revenue Adjustment Mechanism (LRAM) Recovery / Shared Savings Mechanism (SSM) Recovery (2012) - Effective until April 30, 2013 | AA65: Temporary Service – Install & remove – underground – no transformer | AM65: Rideau St. Lawrence Distribution Inc. | AO65: Residential Suburban | AP65: kWh
A66: Residential - Hensall | I66: Rate Rider for Lost Revenue Adjustment Mechanism (LRAM) Recovery / Shared Savings Mechanism (SSM) Recovery (2012) – Effective until April 30, 2014 | AA66: Temporary service install & remove – overhead – no transformer | AM66: St. Thomas Energy Inc. | AO66: Residential Suburban Seasonal | AP66: kWh
A67: Residential – High Density [R1] | I67: Rate Rider for Lost Revenue Adjustment Mechanism (LRAM) Recovery (2011) – Effective until December 31, 2012 | AA67: Temporary Service Install & Remove – Overhead – With Transformer | AM67: Sioux Lookout Hydro Inc. | AO67: Residential Suburban Year Round | AP67: kWh
A68: Residential – Normal Density [R2] | I68: Rate Rider for Lost Revenue Adjustment Mechanism (LRAM) Recovery (2012) – Effective until December 31, 2012 | AA68: Temporary Service Install & Remove – Underground – No Transformer | AM68: Thunder Bay Hydro Electricity Distribution | AO68: Residential Urban | AP68: kWh
A69: Residential – Urban [UR] | I69: Rate Rider for Lost Revenue Adjustment Mechanism (LRAM) Recovery/Shared Savings Mechanism (SSM) Recovery – Effective until March 31, 2016 | AA69: Temporary service installation and removal – overhead – no transformer | AM69: Tillsonburg Hydro Inc. | AO69: Residential Urban Year-Round | AP69: kWh
A70: Residential Suburban | I70: Rate Rider for Recalculated Deferral/Variance Account Disposition (2010) | AA70: Temporary service installation and removal – overhead – with transformer | AM70: Toronto Hydro-Electric System Limited | AO70: Seasonal Residential – High Density [R3] | AP70: kWh
A71: Residential Suburban Seasonal | I71: Rate Rider for Recovery of Foregone Revenue | AA71: Temporary service installation and removal – underground – no transformer | AM71: Veridian Connections Inc. | AO71: Seasonal Residential – Normal Density [R4] | AP71: kWh
A72: Residential Suburban Year Round | I72: Rate Rider for Recovery of Foregone Revenue – Effective until December 31, 2012 | AM72: Wasaga Distribution Inc. | AO72: Seasonal Residential – R4 | AP72: kWh
A73: Residential Urban Year-Round | I73: Rate Rider for Recovery of Incremental Capital Costs | AM73: Waterloo North Hydro Inc. | AO73: Sentinel Lighting | AP73: kW
A74: Seasonal Residential – High Density [R3] | I74: Rate Rider for Recovery of Late Payment – Effective until April 30, 2012 | AM74: Welland Hydro Electric System Corp. | AO74: Small Commercial and USL - per connection | AP74: kW
A75: Seasonal Residential – Normal Density [R4] | I75: Rate Rider for Recovery of Late Payment Penalty Litigation Costs | AM75: Wellington North Power Inc. | AO75: Small Commercial and USL - per meter | AP75: kW
A76: Seasonal Residential – R4 | I76: Rate Rider for Recovery of Late Payment Penalty Litigation Costs (per connection) | AM76: West Coast Huron Energy Inc. | AO76: Standard A General Service Air Access | AP76: kW
A77: Small Commercial and USL - per connection | I77: Rate Rider for Recovery of Late Payment Penalty Litigation Costs – Effective until April 30, 2012 | AM77: Westario Power Inc. | AO77: Standard A General Service Road/Rail | AP77: kW
A78: Small Commercial and USL - per meter | I78: Rate Rider for Recovery of Stranded Meter Assets | AM78: Whitby Hydro Electric Corporation | AO78: Standard A Residential Air Access | AP78: kW
A79: Standard A General Service Air Access | I79: Rate Rider for Recovery of Stranded Meter Assets – Effective until March 31, 2016 | AM79: Woodstock Hydro Services Inc. | AO79: Standard A Residential Road/Rail | AP79: kW
A80: Standard A General Service Road/Rail | I80: Rate Rider for Recovery of Stranded Meter Assets – Effective until December 31, 2012 | AO80: Stand-By | AP80: kW
A81: Standard A Residential Air Access | I81: Rate Rider for Regulatory Asset Recovery | AO81: Standby - General Service 1,000 - 5,000 kW | AP81: kW
A82: Standard A Residential Road/Rail | I82: Rate Rider for Recovery of Residual Historical Smart Meter Costs – Effective until March 31, 2013 | AO82: Standby - General Service 50 - 1,000 kW | AP82: kW
A83: Standby - General Service 1,000 - 5,000 kW | I83: Rate Rider for Return of Revenue Sufficiency | AO83: Standby - Large Use | AP83: kW
A84: Standby - General Service 50 - 1,000 kW | I84: Rate Rider for Return of Transformer Ownership Allowance Sufficiency | AO84: Standby Distribution Service | AP84: kW
A85: Standby - Large Use | I85: Rate Rider for Smart Meter Incremental Revenue Requirement – in effect until the Effective date of the next cost of service application | AO85: Standby Power | AP85: kW
A86: Standby Distribution Service | I86: Rate Rider for Tax Adjustments - Effective until April 30, 2013 | AO86: Standby Power - APPROVED ON AN INTERIM BASIS | AP86: kW
A87: Standby Power | I87: Rate Rider for Tax Adjustments – Effective until December 31, 2012 | AO87: Standby Power – INTERIM APPROVAL | AP87: kW
A88: Standby Power - APPROVED ON AN INTERIM BASIS | I88: Rate Rider for Tax Change | AO88: Standby Power General Service 1,500 to 4,999 kW | AP88: kW
A89: Standby Power – INTERIM APPROVAL | I89: Rate Rider for Tax Change – Effective until April 30, 2012 | AO89: Standby Power General Service 50 to 1,499 kW | AP89: kW
A90: Standby Power General Service 1,500 to 4,999 kW | I90: Rate Rider for Tax Change – Effective until April 30, 2013 | AO90: Standby Power General Service Large Use | AP90: kW
A91: Standby Power General Service 50 to 1,499 kW | I91: Rate Rider for Tax Change – Hydro One Networks | AO91: Street Lighting | AP91: kW
A92: Standby Power General Service Large Use | I92: Rate Rider for Tax Change – Waterloo North Hydro | AO92: Unmetered Scattered Load | AP92: kWh
A93: Westport Sewage Treatment Plant | I93: Rate Rider for Tax Change Dedicated LV Line | AO93: Westport Sewage Treatment Plant | AP93: kW
A94: Year-Round Residential – R2 | I94: Rate Rider for Tax Change Shared LV Line | AO94: Year-Round Residential – R2 | AP94: kWh
I95: Rate Rider for Z-Factor Recovery
I96: Rate Rider for Z-Factor Recovery - Effective Until April 30,2013
I97: Retail Transmission Rate - Line and Transformation Connection Service Rate
I98: Retail Transmission Rate - Line and Transformation Connection Service Rate - (less than 1,000 kW)
I99: Retail Transmission Rate - Line and Transformation Connection Service Rate - Interval Metered
I100: Retail Transmission Rate - Line and Transformation Connection Service Rate - Interval Metered (1,000 to 4,999 kW)
I101: Retail Transmission Rate - Line and Transformation Connection Service Rate - Interval Metered (less than 1,000 kW)
I102: Retail Transmission Rate - Line and Transformation Connection Service Rate - Interval Metered < 1,000 kW
I103: Retail Transmission Rate - Line and Transformation Connection Service Rate - Interval Metered > 1,000 kW
I104: Retail Transmission Rate - Line and Transformation Connection Service Rate - Interval Metered ≥ 1,000kW
I105: Retail Transmission Rate - Line Connection Service Rate
I106: Retail Transmission Rate - Network Service Rate
I107: Retail Transmission Rate - Network Service Rate - (less than 1,000 kW)
I108: Retail Transmission Rate - Network Service Rate - Interval Metered
I109: Retail Transmission Rate - Network Service Rate - Interval Metered (1,000 to 4,999 kW)
I110: Retail Transmission Rate - Network Service Rate - Interval Metered (less than 1,000 kW)
I111: Retail Transmission Rate - Network Service Rate - Interval Metered < 1,000 kW
I112: Retail Transmission Rate - Network Service Rate - Interval Metered > 1,000 kW
I113: Retail Transmission Rate - Network Service Rate - Interval Metered ≥ 1,000 kW
I114: Retail Transmission Rate - Transformation Connection Service Rate
I115: Rural Rate Protection Charge
I116: Rural Rate Protection Charge – Effective on and after May 1, 2012
I117: Service Charge
I118: Service Charge - Effective Until April 30, 2013
I119: Service Charge (Based on 30 day month)
I120: Service Charge (per account)
I121: Service Charge (per connection)
I122: Service Charge (per customer)
I123: Service Charge (per light)
I124: Service Charge for metered account
I125: Smart Grid Rate Adder
I126: Smart Meter Disposition Rider 2 – Effective until next cost of service application
I127: Smart Meter Disposition Rider 3 – Effective until next cost of service application
I128: Smart Meter Funding Adder
I129: Smart Meter Funding Adder – Effective until March 31, 2012
I130: Smart Meter Funding Adder – Effective Until December 31, 2012
I131: Smart Meter Funding Adder – Effective until October 31, 2012
I132: Standard Supply Service – Administrative Charge (if Applicable)
I133: Wholesale Market Service Rate
